Workbook

Sheet Cover
C2: CitiPower
C3: Regulatory proposal 2026-31
C5: =REPLACE(LEFT(_xlfn.TEXTAFTER(CELL("filename")," - ",1),FIND("Jan2025",_xlfn.TEXTAFTER(CELL("filename")," - "),1)-4),1,1,UPPER(LEFT(LEFT(_xlfn.TEXTAFTER(CELL("filename")," - ",1),FIND("Jan2025",_xlfn.TEXTAFTER(CELL("filename")," - "),1)-4),1))) -> Metering business case
C6: Model number: | D6: =LEFT(_xlfn.TEXTAFTER(CELL("filename")," MOD "),FIND(" - ",_xlfn.TEXTAFTER(CELL("filename")," MOD "),1)-1) -> 11.04
C8: 2025-01-31

Sheet Summary
B2: Proactive meter replacement - Cost model
B5: Options summary - NPV
B7: Description | C7: NPV | D7: NPV net
B8: ='Option 3'!B2 -> Option 3 - Proactive delayed | C8: ='Option 3'!D50 -> 135826153.8 | D8: =$C$10-C8 -> 3199735.852
B9: ='Option 2'!B2 -> Option 2 - Proactive | C9: ='Option 2'!D50 -> 130301670.5 | D9: =$C$10-C9 -> 8724219.143
B10: ='Option 1'!B2 -> Option 1 - Reactive | C10: ='Option 1'!D35 -> 139025889.6 | D10: -
B13: WACC
B14: 0.0364 | C14: 0.0364
B18: Waterfall - NPV
C20: Option 2 | D20: Option 3
B21: Reactive failures - Labour | C21: ='Option 1'!D46 -> 61340467.73 | D21: =C21 -> 61340467.73
B22: Reactive failures - Materials | C22: ='Option 1'!D47 -> 58417136.19 | D22: =C22 -> 58417136.19
B23: Reactive faults - Labour | C23: ='Option 1'!D48 -> 12777492.79 | D23: 12777492.79
B24: Reactive Faults - Materials | C24: ='Option 1'!D49 -> 6490792.91 | D24: 6490792.91
B25: Proactive - Labour | C25: =-1*'Option 2'!D66 -> -22073287.32 | D25: =-1*'Option 3'!D66 -> -12884406.14
B26: Proactive - Materials | C26: =-1*'Option 2'!D67 -> -57617191.71 | D26: =-1*'Option 3'!D67 -> -33630799.79
B27: Residual failures - Labour | C27: =-1*'Option 2'!D68 -> -23103694.15 | D27: =-1*'Option 3'!D68 -> -40769320.06
B28: Residual failures - Materials | C28: =-1*'Option 2'!D69 -> -20425405.36 | D28: =-1*'Option 3'!D69 -> -36044277.05
B29: Residual faults - Labour | C29: =-1*'Option 2'!D70 -> -4812602.453 | D29: =-1*'Option 3'!D70 -> -8492431.056
B30: Residual Faults - Materials | C30: =-1*'Option 2'!D71 -> -2269489.484 | D30: =-1*'Option 3'!D71 -> -4004919.672
B31: Total | C31: =SUM(C21:C30) -> 8724219.143 | D31: =SUM(D21:D30) -> 3199735.852

Sheet Result tables
B2: NPV Results
B5: Citipower
B7: option | C7: gross npv | D7: net npv* | E7: bcr*
B8: Option1 - Base Case | C8: 139025889.6 | D8: N/A | E8: N/A
B9: Option 2 | C9: 130302680.1 | D9: =C8-C9 -> 8723209.474 | E9: =C8/C9 -> 1.066945741
B10: Option 3 | C10: 135826153.8 | D10: =C8-C10 -> 3199735.852 | E10: =C8/C10 -> 1.023557583
C13: Reactive | D13: Proactive | E13: Move to 2031
B14: Sensitivity analysis | C14: Base Case | D14: Option 2 | E14: Option 3
B15: Adopting alternative failure rate profile option 1 | C15: 173111153.7 | D15: 153276922.3 | E15: 166607277.8
B16: Adopting alternative failure rate profile option 2 | C16: 93211516.6 | D16: 115204864.8 | E16: 110994308.7
B17: +10% change in reactive replacement installation costs | C17: 146437685.7 | D17: 133484821.3 | E17: 141381662
B18: -10% change in reactive replacement installation costs | C18: 131614093.6 | D18: 127678777.4 | E18: 131398899.4
B19: "+10% change in tech capital costs" | C19: 145516682.5 | D19: 138641020.9 | E19: 143812708.7
B20: "-10% change in tech capital costs" | C20: 132535096.7 | D20: 122522577.8 | E20: 128967852.8
B21: 6% WACC | C21: 114196435.4 | D21: 115178672.9 | E21: 114809023

Sheet Option 3
B2: Option 3 - Proactive delayed
B4: Expenditure / benefits profile
D6: 1 | E6: 2 | F6: 3 | G6: 4 | H6: 5 | I6: 6 | J6: 7 | K6: 8 | L6: 9 | M6: 10 | N6: 11 | O6: 12 | P6: 13 | Q6: 14 | R6: 15
D7: 2026-27 | E7: 2027-28 | F7: 2028-29 | G7: 2029-30 | H7: 2030-31 | I7: 2031-32 | J7: 2032-33 | K7: 2033-34 | L7: 2034-35 | M7: 2035-36 | N7: 2036-37 | O7: 2037-38 | P7: 2038-39 | Q7: 2039-40 | R7: 2040-41
B8: Pro-active Labour Costs | C8: AMI 1Ph 1e | D8: 0 | E8: 0 | F8: 0 | G8: 0 | H8: 0 | I8: 1761177.724 | J8: 1921348.144 | K8: 1921348.144 | L8: 1921348.144 | M8: 1841321.008 | N8: 880646.9366 | O8: 0 | P8: 0 | Q8: 0 | R8: 0
C9: AMI 1Ph 1e + c | D9: 0 | E9: 0 | F9: 0 | G9: 0 | H9: 0 | I9: 58307.14352 | J9: 63533.87949 | K9: 63533.87949 | L9: 63533.87949 | M9: 60862.43666 | N9: 29153.57176 | O9: 0 | P9: 0 | Q9: 0 | R9: 0
C10: AMI 1Ph 2e + C | D10: 0 | E10: 0 | F10: 0 | G10: 0 | H10: 0 | I10: 243798.1957 | J10: 265982.7862 | K10: 265982.7862 | L10: 265982.7862 | M10: 254948.5658 | N10: 121957.1727 | O10: 0 | P10: 0 | Q10: 0 | R10: 0
C11: AMI 3Ph | D11: 0 | E11: 0 | F11: 0 | G11: 0 | H11: 0 | I11: 743421.0987 | J11: 810990.1044 | K11: 810990.1044 | L11: 810990.1044 | M11: 777286.6196 | N11: 371710.5494 | O11: 0 | P11: 0 | Q11: 0 | R11: 0
C12: AMI 3Ph + C | D12: 0 | E12: 0 | F12: 0 | G12: 0 | H12: 0 | I12: 15069.3466 | J12: 16527.67046 | K12: 16527.67046 | L12: 16527.67046 | M12: 15717.49054 | N12: 7615.69129 | O12: 0 | P12: 0 | Q12: 0 | R12: 0
C13: AMI 3Ph CT | D13: 0 | E13: 0 | F13: 0 | G13: 0 | H13: 0 | I13: 150441.4828 | J13: 163680.3333 | K13: 163680.3333 | L13: 163680.3333 | M13: 157060.908 | N13: 75220.7414 | O13: 0 | P13: 0 | Q13: 0 | R13: 0
D14: =SUM(D8:D13) -> 0 | E14: =SUM(E8:E13) -> 0 | F14: 0 | G14: 0 | H14: =SUM(H8:H13) -> 0 | I14: 2972214.991 | J14: 3242062.918 | K14: 3242062.918 | L14: 3242062.918 | M14: 3107197.029 | N14: 1486304.663 | O14: 0 | P14: 0 | Q14: 0 | R14: 0
B15: Pro-active Material Costs | C15: AMI 1Ph 1e | D15: 0 | E15: 0 | F15: 0 | G15: 0 | H15: 0 | I15: 4487700.122 | J15: 4895834.296 | K15: 4895834.296 | L15: 4895834.296 | M15: 4691915.191 | N15: 2243998.043 | O15: 0 | P15: 0 | Q15: 0 | R15: 0
C16: AMI 1Ph 1e + c | D16: 0 | E16: 0 | F16: 0 | G16: 0 | H16: 0 | I16: 171250.8157 | J16: 186601.9844 | K16: 186601.9844 | L16: 186601.9844 | M16: 178755.8315 | N16: 85625.40784 | O16: 0 | P16: 0 | Q16: 0 | R16: 0
C17: AMI 1Ph 2e + C | D17: 0 | E17: 0 | F17: 0 | G17: 0 | H17: 0 | I17: 814843.114 | J17: 888990.3435 | K17: 888990.3435 | L17: 888990.3435 | M17: 852110.8315 | N17: 407615.6597 | O17: 0 | P17: 0 | Q17: 0 | R17: 0
C18: AMI 3Ph | D18: 0 | E18: 0 | F18: 0 | G18: 0 | H18: 0 | I18: 2086061.688 | J18: 2275662.325 | K18: 2275662.325 | L18: 2275662.325 | M18: 2181089.345 | N18: 1043030.844 | O18: 0 | P18: 0 | Q18: 0 | R18: 0
C19: AMI 3Ph + C | D19: 0 | E19: 0 | F19: 0 | G19: 0 | H19: 0 | I19: 44308.00327 | J19: 48595.87456 | K19: 48595.87456 | L19: 48595.87456 | M19: 46213.72384 | N19: 22392.21671 | O19: 0 | P19: 0 | Q19: 0 | R19: 0
C20: AMI 3Ph CT | D20: 0 | E20: 0 | F20: 0 | G20: 0 | H20: 0 | I20: 153456.0705 | J20: 166960.2048 | K20: 166960.2048 | L20: 166960.2048 | M20: 160208.1377 | N20: 76728.03527 | O20: 0 | P20: 0 | Q20: 0 | R20: 0
D21: =SUM(D15:D20) -> 0 | E21: =SUM(E15:E20) -> 0 | F21: 0 | G21: 0 | H21: 0 | I21: 7757619.814 | J21: 8462645.028 | K21: 8462645.028 | L21: 8462645.028 | M21: 8110293.061 | N21: 3879390.207 | O21: 0 | P21: 0 | Q21: 0 | R21: 0
D23: Year
D24: 2026-27 | E24: 2027-28 | F24: 2028-29 | G24: 2029-30 | H24: 2030-31 | I24: 2031-32 | J24: 2032-33 | K24: 2033-34 | L24: 2034-35 | M24: 2035-36 | N24: 2036-37 | O24: 2037-38 | P24: 2038-39 | Q24: 2039-40 | R24: 2040-41
B25: Pro-active failures Labour Costs | C25: AMI 1Ph 1e | D25: 1001208.311 | E25: 1566716.973 | F25: 2232960.704 | G25: 2967589.625 | H25: 3696076.163 | I25: 4108025.267 | J25: 4094921.519 | K25: 3838169.939 | L25: 3376262.792 | M25: 2732541.129 | N25: 2275957.38 | O25: 2229275.275 | P25: 2297250.972 | Q25: 2308307.26 | R25: 2264901.092
C26: AMI 1Ph 1e + c | D26: 33168.8643 | E26: 52005.50329 | F26: 73708.58734 | G26: 98278.11645 | H26: 122438.1534 | I26: 135951.3944 | J26: 135541.9023 | K26: 126942.5671 | L26: 111791.3575 | M26: 90497.76556 | N26: 75346.55594 | O26: 73708.58734 | P26: 76165.54025 | Q26: 76165.54025 | R26: 74937.06379
C27: AMI 1Ph 2e + C | D27: 138817.8395 | E27: 217030.8405 | F27: 309166.5747 | G27: 411130.1205 | H27: 511865.1898 | I27: 568784.5989 | J27: 567146.6303 | K27: 531520.8131 | L27: 467640.0374 | M27: 378370.7483 | N27: 315308.9569 | O27: 308757.0825 | P27: 318175.402 | Q27: 319813.3706 | R27: 313670.9883
C28: AMI 3Ph | D28: 383745.2246 | E28: 600509.419 | F28: 855648.1359 | G28: 1137234.159 | H28: 1416227.309 | I28: 1573873.995 | J28: 1569206.824 | K28: 1470677.645 | L28: 1293843.696 | M28: 1047002.174 | N28: 872242.524 | O28: 854092.412 | P28: 880539.7181 | Q28: 884688.3151 | R28: 867575.3524
C29: AMI 3Ph + C | D29: 7778.619418 | E29: 12445.79107 | F29: 17631.53735 | G29: 23335.85825 | H29: 28521.60453 | I29: 32151.62693 | J29: 31633.0523 | K29: 30077.32841 | L29: 26447.30602 | M29: 21261.55974 | N29: 17631.53735 | O29: 17112.96272 | P29: 17631.53735 | Q29: 18150.11197 | R29: 17631.53735
C30: AMI 3Ph CT | D30: 26745.1525 | E30: 42123.61518 | F30: 60176.59312 | G30: 79566.82868 | H30: 98957.06424 | I30: 110323.7541 | J30: 109655.1252 | K30: 102968.8371 | L30: 90933.51849 | M30: 73549.16937 | N30: 60845.22193 | O30: 59507.96431 | P30: 61513.85074 | Q30: 62182.47956 | R30: 60845.22193
D31: =SUM(D25:D30) -> 1591464.012 | E31: =SUM(E25:E30) -> 2490832.142 | F31: 3549292.132 | G31: 4717134.707 | H31: 5874085.483 | I31: 6529110.637 | J31: 6508105.053 | K31: 6100357.13 | L31: 5366918.708 | M31: 4343222.546 | N31: 3617332.176 | O31: 3542454.284 | P31: 3651277.02 | Q31: 3669307.078 | R31: 3599561.256
B32: Pro-active failures Material Costs | C32: AMI 1Ph 1e | D32: 723631.656 | E32: 1132357.757 | F32: 1613890.969 | G32: 2144850.148 | H32: 2671369.868 | I32: 2969109.518 | J32: 2959638.675 | K32: 2774069.33 | L32: 2440222.087 | M32: 1974966.888 | N32: 1644967.175 | O32: 1611227.294 | P32: 1660357.296 | Q32: 1668348.321 | R32: 1636976.151
C33: AMI 1Ph 1e + c | D33: 33268.04501 | E33: 52161.00885 | F33: 73928.98892 | G33: 98571.98522 | H33: 122804.2649 | I33: 136357.9129 | J33: 135947.1963 | K33: 127322.1476 | L33: 112125.6332 | M33: 90768.36972 | N33: 75571.85534 | O33: 73928.98892 | P33: 76393.28855 | Q33: 76393.28855 | R33: 75161.13873
C34: AMI 1Ph 2e + C | D34: 147406.1032 | E34: 230457.9194 | F34: 328293.8286 | G34: 436565.5681 | H34: 543532.8288 | I34: 603973.6794 | J34: 602234.3743 | K34: 564404.4894 | L34: 496571.5924 | M34: 401779.4671 | N34: 334816.2225 | O34: 327859.0023 | P34: 337860.0064 | Q34: 339599.3114 | R34: 333076.9175
C35: AMI 3Ph | D35: 355842.655 | E35: 556845.6682 | F35: 793432.9469 | G35: 1054544.517 | H35: 1313251.744 | I35: 1459435.754 | J35: 1455107.938 | K35: 1363742.932 | L35: 1199766.789 | M35: 970873.4059 | N35: 808820.7374 | O35: 791990.3415 | P35: 816514.6326 | Q35: 820361.5802 | R35: 804492.9213
C36: AMI 3Ph + C | D36: 7595.853104 | E36: 12153.36497 | F36: 17217.26704 | G36: 22787.55931 | H36: 27851.46138 | I36: 31396.19283 | J36: 30889.80262 | K36: 29370.632 | L36: 25825.90055 | M36: 20761.99848 | N36: 17217.26704 | O36: 16710.87683 | P36: 17217.26704 | Q36: 17723.65724 | R36: 17217.26704
C37: AMI 3Ph CT | D37: 26125.05488 | E37: 41146.96143 | F37: 58781.37348 | G37: 77722.03826 | H37: 96662.70305 | I37: 107765.8514 | J37: 107112.725 | K37: 100581.4613 | L37: 88825.18658 | M37: 71843.90091 | N37: 59434.49985 | O37: 58128.2471 | P37: 60087.62622 | Q37: 60740.75259 | R37: 59434.49985
D38: =SUM(D32:D37) -> 1293869.367 | E38: =SUM(E32:E37) -> 2025122.68 | F38: 2885545.374 | G38: 3835041.815 | H38: 4775472.87 | I38: 5308038.909 | J38: 5290930.711 | K38: 4959490.992 | L38: 4363337.189 | M38: 3530994.03 | N38: 2940827.757 | O38: 2879844.751 | P38: 2968430.117 | Q38: 2983166.911 | R38: 2926358.895
B45: Capital costs
D47: 2026-27 | E47: 2027-28 | F47: 2028-29 | G47: 2029-30 | H47: 2030-31 | I47: 2031-32 | J47: 2032-33 | K47: 2033-34 | L47: 2034-35 | M47: 2035-36 | N47: 2036-37 | O47: 2037-38 | P47: 2038-39 | Q47: 2039-40 | R47: 2040-41
D48: =D38+D31+D21+D14 -> 2885333.379 | E48: 4515954.822 | F48: 6434837.507 | G48: 8552176.522 | H48: 10649558.35 | I48: 22566984.35 | J48: 23503743.71 | K48: 22764556.07 | L48: 21434963.84 | M48: 19091706.67 | N48: 11923854.8 | O48: 6422299.035 | P48: 6619707.138 | Q48: 6652473.988 | R48: 6525920.151
B50: NPV | D50: =NPV(Summary!$B$14,D48:R48) -> 135826153.8
B52: NPV Breakdown
B56: Proactive - Labour | D56: =D14 -> 0 | E56: =E14 -> 0 | F56: 0 | G56: 0 | H56: 0 | I56: 2972214.991 | J56: 3242062.918 | K56: 3242062.918 | L56: 3242062.918 | M56: 3107197.029 | N56: 1486304.663 | O56: 0 | P56: 0 | Q56: 0 | R56: 0
B57: Proactive - Materials | D57: =D21 -> 0 | E57: =E21 -> 0 | F57: 0 | G57: 0 | H57: 0 | I57: 7757619.814 | J57: 8462645.028 | K57: 8462645.028 | L57: 8462645.028 | M57: 8110293.061 | N57: 3879390.207 | O57: 0 | P57: 0 | Q57: 0 | R57: 0
B58: Proactive failures - Labour | D58: 1317105.141 | E58: 2061427.589 | F58: 2937415.412 | G58: 3903928.916 | H58: 4861428.303 | I58: 5403531.041 | J58: 5386146.693 | K58: 5048692.072 | L58: 4441694.044 | M58: 3594476.974 | N58: 2993725.759 | O58: 2931756.367 | P58: 3021818.715 | Q58: 3036740.499 | R58: 2979018.439
B59: Proactive failures - Materials | D59: 1164482.43 | E59: 1822610.412 | F59: 2596990.837 | G59: 3451537.634 | H59: 4297925.583 | I59: 4777235.018 | J59: 4761837.64 | K59: 4463541.893 | L59: 3927003.47 | M59: 3177894.627 | N59: 2646744.982 | O59: 2591860.276 | P59: 2671587.106 | Q59: 2684850.22 | R59: 2633723.006
B60: Proactive faults - Labour | D60: =D31-D58 -> 274358.8705 | E60: =E31-E58 -> 429404.5534 | F60: 611876.7208 | G60: 813205.791 | H60: 1012657.18 | I60: 1125579.596 | J60: 1121958.359 | K60: 1051665.058 | L60: 925224.6637 | M60: 748745.5723 | N60: 623606.4171 | O60: 610697.9165 | P60: 629458.305 | Q60: 632566.579 | R60: 620542.8167
B61: Proactive Faults - Materials | D61: =D38-D59 -> 129386.9367 | E61: =E38-E59 -> 202512.268 | F61: 288554.5374 | G61: 383504.1815 | H61: 477547.287 | I61: 530803.8909 | J61: 529093.0711 | K61: 495949.0992 | L61: 436333.7189 | M61: 353099.403 | N61: 294082.7757 | O61: 287984.4751 | P61: 296843.0117 | Q61: 298316.6911 | R61: 292635.8895
B63: NPV
B66: Proactive - Labour | D66: =NPV(Summary!$B$14,D56:R56) -> 12884406.14
B67: Proactive - Materials | D67: =NPV(Summary!$B$14,D57:R57) -> 33630799.79
B68: Proactive failures - Labour | D68: =NPV(Summary!$B$14,D58:R58) -> 40769320.06
B69: Proactive failures - Materials | D69: =NPV(Summary!$B$14,D59:R59) -> 36044277.05
B70: Proactive faults - Labour | D70: =NPV(Summary!$B$14,D60:R60) -> 8492431.056
B71: Proactive Faults - Materials | D71: =NPV(Summary!$B$14,D61:R61) -> 4004919.672
B72: Total | D72: =SUM(D66:D71) -> 135826153.8

Sheet Option 2
B2: Option 2 - Proactive
B4: Expenditure / benefits profile
D6: 1 | E6: 2 | F6: 3 | G6: 4 | H6: 5 | I6: 6 | J6: 7 | K6: 8 | L6: 9 | M6: 10 | N6: 11 | O6: 12 | P6: 13 | Q6: 14 | R6: 15
D7: 2026-27 | E7: 2027-28 | F7: 2028-29 | G7: 2029-30 | H7: 2030-31 | I7: 2031-32 | J7: 2032-33 | K7: 2033-34 | L7: 2034-35 | M7: 2035-36 | N7: 2036-37 | O7: 2037-38 | P7: 2038-39 | Q7: 2039-40 | R7: 2040-41
B8: Pro-active Labour Costs | C8: AMI 1Ph 1e | D8: 1761293.873 | E8: 1921348.144 | F8: 1921348.144 | G8: 1921348.144 | H8: 1921348.144 | I8: 1921348.144 | J8: 1921348.144 | K8: 1521096.318 | L8: 560422.246 | M8: 0 | N8: 0 | O8: 0 | P8: 0 | Q8: 0 | R8: 0
C9: AMI 1Ph 1e + c | D9: 58307.14352 | E9: 63533.87949 | F9: 63533.87949 | G9: 63533.87949 | H9: 63533.87949 | I9: 63533.87949 | J9: 63533.87949 | K9: 50292.81503 | L9: 18583.95013 | M9: 0 | N9: 0 | O9: 0 | P9: 0 | Q9: 0 | R9: 0
C10: AMI 1Ph 2e + C | D10: 243914.3454 | E10: 265982.7862 | F10: 265982.7862 | G10: 265982.7862 | H10: 265982.7862 | I10: 265982.7862 | J10: 265982.7862 | K10: 210579.3849 | L10: 77587.99178 | M10: 0 | N10: 0 | O10: 0 | P10: 0 | Q10: 0 | R10: 0
C11: AMI 3Ph | D11: 743421.0987 | E11: 810990.1044 | F11: 810990.1044 | G11: 810990.1044 | H11: 810990.1044 | I11: 810990.1044 | J11: 810990.1044 | K11: 641986.5722 | L11: 236572.538 | M11: 0 | N11: 0 | O11: 0 | P11: 0 | Q11: 0 | R11: 0
C12: AMI 3Ph + C | D12: 15069.3466 | E12: 16527.67046 | F12: 16527.67046 | G12: 16527.67046 | H12: 16527.67046 | I12: 16527.67046 | J12: 16527.67046 | K12: 13124.91478 | L12: 4861.079547 | M12: 0 | N12: 0 | O12: 0 | P12: 0 | Q12: 0 | R12: 0
C13: AMI 3Ph CT | D13: 149839.7169 | E13: 163680.3333 | F13: 163680.3333 | G13: 163680.3333 | H13: 163680.3333 | I13: 163680.3333 | J13: 163680.3333 | K13: 129379.6752 | L13: 47539.50856 | M13: 0 | N13: 0 | O13: 0 | P13: 0 | Q13: 0 | R13: 0
D14: =SUM(D8:D13) -> 2971845.524 | E14: =SUM(E8:E13) -> 3242062.918 | F14: 3242062.918 | G14: 3242062.918 | H14: 3242062.918 | I14: 3242062.918 | J14: =SUM(J8:J13) -> 3242062.918 | K14: 2566459.68 | L14: 945567.314 | M14: 0 | N14: =SUM(N8:N13) -> 0 | O14: 0 | P14: 0 | Q14: 0 | R14: 0
B15: Pro-active Material Costs | C15: AMI 1Ph 1e | D15: 4487931.641 | E15: 4895763.994 | F15: 4895763.994 | G15: 4895763.994 | H15: 4895763.994 | I15: 4895763.994 | J15: 4895763.994 | K15: 3875887.152 | L15: 1428005.155 | M15: 0 | N15: 0 | O15: 0 | P15: 0 | Q15: 0 | R15: 0
C16: AMI 1Ph 1e + c | D16: 171248.3566 | E16: 186599.3049 | F16: 186599.3049 | G16: 186599.3049 | H16: 186599.3049 | I16: 186599.3049 | J16: 186599.3049 | K16: 147710.2359 | L16: 54581.14952 | M16: 0 | N16: 0 | O16: 0 | P16: 0 | Q16: 0 | R16: 0
C17: AMI 1Ph 2e + C | D17: 815219.6131 | E17: 888977.5781 | F17: 888977.5781 | G17: 888977.5781 | H17: 888977.5781 | I17: 888977.5781 | J17: 888977.5781 | K17: 703806.266 | L17: 259317.4769 | M17: 0 | N17: 0 | O17: 0 | P17: 0 | Q17: 0 | R17: 0
C18: AMI 3Ph | D18: 2086031.733 | E18: 2275629.648 | F18: 2275629.648 | G18: 2275629.648 | H18: 2275629.648 | I18: 2275629.648 | J18: 2275629.648 | K18: 1801407.525 | L18: 663820.037 | M18: 0 | N18: 0 | O18: 0 | P18: 0 | Q18: 0 | R18: 0
C19: AMI 3Ph + C | D19: 44307.36703 | E19: 48595.17674 | F19: 48595.17674 | G19: 48595.17674 | H19: 48595.17674 | I19: 48595.17674 | J19: 48595.17674 | K19: 38590.28741 | L19: 14292.69904 | M19: 0 | N19: 0 | O19: 0 | P19: 0 | Q19: 0 | R19: 0
C20: AMI 3Ph CT | D20: 152840.0515 | E20: 166957.8073 | F20: 166957.8073 | G20: 166957.8073 | H20: 166957.8073 | I20: 166957.8073 | J20: 166957.8073 | K20: 131970.3256 | L20: 48491.42197 | M20: 0 | N20: 0 | O20: 0 | P20: 0 | Q20: 0 | R20: 0
D21: =SUM(D15:D20) -> 7757578.762 | E21: =SUM(E15:E20) -> 8462523.508 | F21: 8462523.508 | G21: 8462523.508 | H21: 8462523.508 | I21: 8462523.508 | J21: =SUM(J15:J20) -> 8462523.508 | K21: 6699371.792 | L21: 2468507.939 | M21: 0 | N21: =SUM(N15:N20) -> 0 | O21: 0 | P21: 0 | Q21: 0 | R21: 0
D23: Year
D24: 2026-27 | E24: 2027-28 | F24: 2028-29 | G24: 2029-30 | H24: 2030-31 | I24: 2031-32 | J24: 2032-33 | K24: 2033-34 | L24: 2034-35 | M24: 2035-36 | N24: 2036-37 | O24: 2037-38 | P24: 2038-39 | Q24: 2039-40 | R24: 2040-41
B25: Pro-active failures Labour Costs | C25: AMI 1Ph 1e | D25: 891054.9225 | E25: 1208001.848 | F25: 1493008.386 | G25: 1712905.671 | H25: 1831248.903 | I25: 1827563.474 | J25: 1688745.634 | K25: 1426670.657 | L25: 1308327.425 | M25: 1424623.196 | N25: 1568354.942 | O25: 1683422.236 | P25: 1764092.19 | Q25: 1807088.866 | R25: 1811183.788
C26: AMI 1Ph 1e + c | D26: 29483.43493 | E26: 40130.23088 | F26: 49548.55038 | G26: 56509.91696 | H26: 60604.83848 | I26: 60604.83848 | J26: 55690.93265 | K26: 47091.59746 | L26: 43406.1681 | M26: 47091.59746 | N26: 52005.50329 | O26: 55690.93265 | P26: 58557.37772 | Q26: 59785.85417 | R26: 59785.85417
C27: AMI 1Ph 2e + C | D27: 123257.1377 | E27: 167072.798 | F27: 206793.5367 | G27: 237095.9559 | H27: 253475.642 | I27: 253066.1499 | J27: 233820.0187 | K27: 197375.2172 | L27: 180995.5311 | M27: 197375.2172 | N27: 217030.8405 | O27: 233001.0344 | P27: 244466.8147 | Q27: 250199.7048 | R27: 250609.1969
C28: AMI 3Ph | D28: 341222.1051 | E28: 462568.568 | F28: 571987.8145 | G28: 656515.4788 | H28: 701631.4715 | I28: 700594.3222 | J28: 647181.1355 | K28: 546577.6577 | L28: 501461.6651 | M28: 546059.0831 | N28: 601027.9937 | O28: 645106.837 | P28: 676221.3147 | Q28: 692297.1282 | R28: 693852.852
C29: AMI 3Ph + C | D29: 6741.470162 | E29: 9334.343301 | F29: 11408.64181 | G29: 13482.94032 | H29: 14001.51495 | I29: 14001.51495 | J29: 12964.3657 | K29: 10890.06718 | L29: 10371.49256 | M29: 10890.06718 | N29: 12445.79107 | O29: 12964.3657 | P29: 13482.94032 | Q29: 14001.51495 | R29: 14001.51495
C30: AMI 3Ph CT | D30: 24070.63725 | E30: 32094.183 | F30: 40117.72875 | G30: 46135.38806 | H30: 48809.90331 | I30: 48809.90331 | J30: 45466.75925 | K30: 38111.84231 | L30: 35437.32706 | M30: 38111.84231 | N30: 42123.61518 | O30: 45466.75925 | P30: 47472.64568 | Q30: 48809.90331 | R30: 48809.90331
D31: =SUM(D25:D30) -> 1415829.708 | E31: =SUM(E25:E30) -> 1919201.971 | F31: 2372864.658 | G31: 2722645.351 | H31: 2909772.273 | I31: 2904640.203 | J31: 2683868.846 | K31: 2266717.039 | L31: 2079999.609 | M31: 2264151.004 | N31: 2492988.685 | O31: 2675652.165 | P31: 2804293.283 | Q31: 2872182.972 | R31: 2878243.109
B32: Pro-active failures Material Costs | C32: AMI 1Ph 1e | D32: 644008.1278 | E32: 873080.8718 | F32: 1079068.766 | G32: 1237999.08 | H32: 1323531.41 | I32: 1320867.773 | J32: 1220537.463 | K32: 1031123.308 | L32: 945590.9781 | M32: 1029643.51 | N32: 1133525.335 | O32: 1216689.988 | P32: 1274994.032 | Q32: 1306069.792 | R32: 1309029.388
C33: AMI 1Ph 1e + c | D33: 29571.59557 | E33: 40250.2273 | F33: 49696.70922 | G33: 56678.8915 | H33: 60786.05755 | I33: 60786.05755 | J33: 55857.45829 | K33: 47232.40958 | L33: 43535.96014 | M33: 47232.40958 | N33: 52161.00885 | O33: 55857.45829 | P33: 58732.47453 | Q33: 59964.62434 | R33: 59964.62434
C34: AMI 1Ph 2e + C | D34: 130882.7052 | E34: 177409.1153 | F34: 219587.2628 | G34: 251764.4063 | H34: 269157.4568 | I34: 268722.6306 | J34: 248285.7962 | K34: 209586.2588 | L34: 192193.2083 | M34: 209586.2588 | N34: 230457.9194 | O34: 247416.1437 | P34: 259591.279 | Q34: 265678.8467 | R34: 266113.673
C35: AMI 3Ph | D35: 316411.4418 | E35: 428934.6598 | F35: 530397.9033 | G35: 608779.4611 | H35: 650615.0164 | I35: 649653.2795 | J35: 600123.8289 | K35: 506835.3491 | L35: 464999.7937 | M35: 506354.4806 | N35: 557326.5366 | O35: 598200.3551 | P35: 627052.4623 | Q35: 641959.3843 | R35: 643401.9896
C36: AMI 3Ph + C | D36: 6583.07269 | E36: 9115.023725 | F36: 11140.58455 | G36: 13166.14538 | H36: 13672.53559 | I36: 13672.53559 | J36: 12659.75517 | K36: 10634.19435 | L36: 10127.80414 | M36: 10634.19435 | N36: 12153.36497 | O36: 12659.75517 | P36: 13166.14538 | Q36: 13672.53559 | R36: 13672.53559
C37: AMI 3Ph CT | D37: 23512.54939 | E37: 31350.06585 | F37: 39187.58232 | G37: 45065.71966 | H37: 47678.22515 | I37: 47678.22515 | J37: 44412.59329 | K37: 37228.2032 | L37: 34615.69771 | M37: 37228.2032 | N37: 41146.96143 | O37: 44412.59329 | P37: 46371.97241 | Q37: 47678.22515 | R37: 47678.22515
D38: =SUM(D32:D37) -> 1150969.492 | E38: =SUM(E32:E37) -> 1560139.964 | F38: 1929078.808 | G38: 2213453.704 | H38: 2365440.701 | I38: 2361380.502 | J38: 2181876.895 | K38: 1842639.723 | L38: 1691063.442 | M38: 1840679.056 | N38: 2026771.127 | O38: 2175236.293 | P38: 2279908.366 | Q38: 2335023.408 | R38: 2339860.436
B45: Capital costs
D47: 2026-27 | E47: 2027-28 | F47: 2028-29 | G47: 2029-30 | H47: 2030-31 | I47: 2031-32 | J47: 2032-33 | K47: 2033-34 | L47: 2034-35 | M47: 2035-36 | N47: 2036-37 | O47: 2037-38 | P47: 2038-39 | Q47: 2039-40 | R47: 2040-41
D48: =D38+D31+D21+D14 -> 13296223.49 | E48: 15183928.36 | F48: 16006529.89 | G48: 16640685.48 | H48: 16979799.4 | I48: 16970607.13 | J48: 16570332.17 | K48: 13375188.23 | L48: 7185138.304 | M48: 4104830.06 | N48: 4519759.812 | O48: 4850888.459 | P48: 5084201.649 | Q48: 5207206.38 | R48: 5218103.545
B50: NPV | D50: =NPV(Summary!$B$14,D48:R48) -> 130301670.5
B52: NPV Breakdown
B56: Proactive - Labour | D56: =D14 -> 2971845.524 | E56: =E14 -> 3242062.918 | F56: 3242062.918 | G56: 3242062.918 | H56: 3242062.918 | I56: 3242062.918 | J56: 3242062.918 | K56: 2566459.68 | L56: 945567.314 | M56: 0 | N56: 0 | O56: 0 | P56: 0 | Q56: 0 | R56: 0
B57: Proactive - Materials | D57: =D21 -> 7757578.762 | E57: =E21 -> 8462523.508 | F57: 8462523.508 | G57: 8462523.508 | H57: 8462523.508 | I57: 8462523.508 | J57: 8462523.508 | K57: 6699371.792 | L57: 2468507.939 | M57: 0 | N57: 0 | O57: 0 | P57: 0 | Q57: 0 | R57: 0
B58: Proactive failures - Labour | D58: =D31*(1-'Labour costs'!$I$14) -> 1171749.14 | E58: =E31*(1-'Labour costs'!$I$14) -> 1588343.038 | F58: =F31*(1-'Labour costs'!$I$14) -> 1963796.993 | G58: =G31*(1-'Labour costs'!$I$14) -> 2253277.588 | H58: =H31*(1-'Labour costs'!$I$14) -> 2408144.949 | I58: =I31*(1-'Labour costs'!$I$14) -> 2403897.616 | J58: =J31*(1-'Labour costs'!$I$14) -> 2221185.92 | K58: =K31*(1-'Labour costs'!$I$14) -> 1875948.588 | L58: =L31*(1-'Labour costs'!$I$14) -> 1721420.126 | M58: =M31*(1-'Labour costs'!$I$14) -> 1873824.922 | N58: =N31*(1-'Labour costs'!$I$14) -> 2063212.357 | O58: =O31*(1-'Labour costs'!$I$14) -> 2214385.746 | P58: =P31*(1-'Labour costs'!$I$14) -> 2320849.905 | Q58: =Q31*(1-'Labour costs'!$I$14) -> 2377035.818 | R58: =R31*(1-'Labour costs'!$I$14) -> 2382051.224
B59: Proactive failures - Materials | D59: =D38*(1-'Labour costs'!$D$14) -> 1035872.543 | E59: =E38*(1-'Labour costs'!$D$14) -> 1404125.967 | F59: =F38*(1-'Labour costs'!$D$14) -> 1736170.927 | G59: =G38*(1-'Labour costs'!$D$14) -> 1992108.334 | H59: =H38*(1-'Labour costs'!$D$14) -> 2128896.631 | I59: =I38*(1-'Labour costs'!$D$14) -> 2125242.451 | J59: =J38*(1-'Labour costs'!$D$14) -> 1963689.205 | K59: =K38*(1-'Labour costs'!$D$14) -> 1658375.75 | L59: =L38*(1-'Labour costs'!$D$14) -> 1521957.098 | M59: =M38*(1-'Labour costs'!$D$14) -> 1656611.15 | N59: =N38*(1-'Labour costs'!$D$14) -> 1824094.014 | O59: =O38*(1-'Labour costs'!$D$14) -> 1957712.664 | P59: =P38*(1-'Labour costs'!$D$14) -> 2051917.529 | Q59: =Q38*(1-'Labour costs'!$D$14) -> 2101521.068 | R59: =R38*(1-'Labour costs'!$D$14) -> 2105874.393
B60: Proactive faults - Labour | D60: =D31-D58 -> 244080.5677 | E60: =E31-E58 -> 330858.9332 | F60: 409067.6652 | G60: 469367.7633 | H60: 501627.3246 | I60: 500742.5863 | J60: 462682.9258 | K60: 390768.451 | L60: 358579.4836 | M60: 390326.0818 | N60: 429776.3285 | O60: 461266.4192 | P60: 483443.378 | Q60: 495147.154 | R60: 496191.8854
B61: Proactive Faults - Materials | D61: =D38-D59 -> 115096.9492 | E61: =E38-E59 -> 156013.9964 | F61: 192907.8808 | G61: 221345.3704 | H61: 236544.0701 | I61: 236138.0502 | J61: 218187.6895 | K61: 184263.9723 | L61: 169106.3442 | M61: 184067.9056 | N61: 202677.1127 | O61: 217523.6293 | P61: 227990.8366 | Q61: 233502.3408 | R61: 233986.0436
B63: Total NPV
B66: Proactive - Labour | D66: =NPV(Summary!$B$14,D56:R56) -> 22073287.32
B67: Proactive - Materials | D67: =NPV(Summary!$B$14,D57:R57) -> 57617191.71
B68: Proactive failures - Labour | D68: =NPV(Summary!$B$14,D58:R58) -> 23103694.15
B69: Proactive failures - Materials | D69: =NPV(Summary!$B$14,D59:R59) -> 20425405.36
B70: Proactive faults - Labour | D70: =NPV(Summary!$B$14,D60:R60) -> 4812602.453
B71: Proactive Faults - Materials | D71: =NPV(Summary!$B$14,D61:R61) -> 2269489.484
B72: Total | D72: =SUM(D66:D71) -> 130301670.5

Sheet Option 1
B2: Option 1 - Reactive
B4: Expenditure / benefits profile
D6: 1 | E6: 2 | F6: 3 | G6: 4 | H6: 5 | I6: 6 | J6: 7 | K6: 8 | L6: 9 | M6: 10 | N6: 11 | O6: 12 | P6: 13 | Q6: 14 | R6: 15
D7: 2026-27 | E7: 2027-28 | F7: 2028-29 | G7: 2029-30 | H7: 2030-31 | I7: 2031-32 | J7: 2032-33 | K7: 2033-34 | L7: 2034-35 | M7: 2035-36 | N7: 2036-37 | O7: 2037-38 | P7: 2038-39 | Q7: 2039-40 | R7: 2040-41
B8: Labour Costs | C8: AMI 1Ph 1e | D8: 1001208.311 | E8: 1566716.973 | F8: 2232960.704 | G8: 2967589.625 | H8: 3731701.98 | I8: 4479844.141 | J8: 5163696.035 | K8: 5737804.032 | L8: 6162856.886 | M8: 6410599.637 | N8: 6467109.554 | O8: 6333615.113 | P8: 6028133.968 | Q8: 5581378.03 | R8: 5031839.562
C9: AMI 1Ph 1e + c | D9: 33168.8643 | E9: 52005.50329 | F9: 73708.58734 | G9: 98278.11645 | H9: 123257.1377 | I9: 148236.159 | J9: 170758.2273 | K9: 190004.3585 | L9: 203927.0916 | M9: 212116.9347 | N9: 213754.9033 | O9: 209659.9818 | P9: 199422.678 | Q9: 184680.9605 | R9: 166663.3058
C10: AMI 1Ph 2e + C | D10: 138817.8395 | E10: 217030.8405 | F10: 309166.5747 | G10: 411130.1205 | H10: 516779.0957 | I10: 620380.6101 | J10: 714973.2972 | K10: 794414.7746 | L10: 853381.6445 | M10: 887778.9852 | N10: 895559.3361 | O10: 877132.1893 | P10: 834545.0055 | Q10: 772711.6906 | R10: 696546.1503
C11: AMI 3Ph | D11: 383745.2246 | E11: 600509.419 | F11: 855648.1359 | G11: 1137234.159 | H11: 1430228.824 | I11: 1716482.018 | J11: 1978362.205 | K11: 2198756.422 | L11: 2361588.855 | M11: 2456488.012 | N11: 2478268.146 | O11: 2426929.258 | P11: 2309731.392 | Q11: 2138601.765 | R11: 1928060.466
C12: AMI 3Ph + C | D12: 7778.619418 | E12: 12445.79107 | F12: 17631.53735 | G12: 23335.85825 | H12: 29040.17916 | I12: 34744.50006 | J12: 40448.82097 | K12: 44597.41799 | L12: 48227.44039 | M12: 49783.16427 | N12: 50301.7389 | O12: 49264.58964 | P12: 47190.29113 | Q12: 43560.26874 | R12: 39411.67172
C13: AMI 3Ph CT | D13: 26745.1525 | E13: 42123.61518 | F13: 60176.59312 | G13: 79566.82868 | H13: 100294.3219 | I13: 120353.1862 | J13: 138406.1642 | K13: 153784.6269 | L13: 165151.3167 | M13: 171837.6048 | N13: 173843.4912 | O13: 169831.7184 | P13: 161808.1726 | Q13: 149772.854 | R13: 135063.0201
C14: Percentage failure | D14: 0.011 | E14: 0.017 | F14: 0.024 | G14: 0.032 | H14: 0.04 | I14: 0.048 | J14: 0.055 | K14: 0.061 | L14: 0.066 | M14: 0.068 | N14: 0.069 | O14: 0.067 | P14: 0.064 | Q14: 0.059 | R14: 0.054
C15: Efficiency | D15: =VLOOKUP(D14,'Labour costs'!$B$82:$D$202,2,FALSE) -> 1 | E15: =VLOOKUP(E14,'Labour costs'!$B$82:$D$202,2,FALSE) -> 1 | F15: =VLOOKUP(F14,'Labour costs'!$B$82:$D$202,2,FALSE) -> 0.9931552588 | G15: =VLOOKUP(G14,'Labour costs'!$B$82:$D$202,2,FALSE) -> 0.9794657763 | H15: =VLOOKUP(H14,'Labour costs'!$B$82:$D$202,2,FALSE) -> 0.9657762938 | I15: =VLOOKUP(I14,'Labour costs'!$B$82:$D$202,2,FALSE) -> 0.9520868114 | J15: =VLOOKUP(J14,'Labour costs'!$B$82:$D$202,2,FALSE) -> 0.9401085142 | K15: =VLOOKUP(K14,'Labour costs'!$B$82:$D$202,2,FALSE) -> 0.9298414023 | L15: =VLOOKUP(L14,'Labour costs'!$B$82:$D$202,2,FALSE) -> 0.9212854758 | M15: =VLOOKUP(M14,'Labour costs'!$B$82:$D$202,2,FALSE) -> 0.9178631052 | N15: =VLOOKUP(N14,'Labour costs'!$B$82:$D$202,2,FALSE) -> 0.9161519199 | O15: =VLOOKUP(O14,'Labour costs'!$B$82:$D$202,2,FALSE) -> 0.9195742905 | P15: =VLOOKUP(P14,'Labour costs'!$B$82:$D$202,2,FALSE) -> 0.9247078464 | Q15: =VLOOKUP(Q14,'Labour costs'!$B$82:$D$202,2,FALSE) -> 0.933263773 | R15: =VLOOKUP(R14,'Labour costs'!$B$82:$D$202,2,FALSE) -> 0.9418196995
D16: =SUM(D8:D13)*D15 -> 1591464.012 | E16: =SUM(E8:E13)*E15 -> 2490832.142 | F16: 3524998.146 | G16: 4620272.008 | H16: 5728310.417 | I16: 6778896.766 | J16: 7715136.602 | K16: 8479560.008 | L16: 9024113.982 | M16: 9351744.015 | N16: 9416976.408 | O16: 9256832.846 | P16: 8859470.07 | Q16: 8278708.148 | R16: 7532282.326
B17: Material Costs | C17: AMI 1Ph 1e | D17: 739541.1226 | E17: 1157253.307 | F17: 1649373.309 | G17: 2192005.937 | H17: 2756416.462 | I17: 3309030.626 | J17: 3814156.874 | K17: 4238220.945 | L17: 4552185.642 | M17: 4735180.48 | N17: 4776921.452 | O17: 4678315.969 | P17: 4452672.747 | Q17: 4122677.097 | R17: 3716761.274
C18: AMI 1Ph 1e + c | D18: 33268.04501 | E18: 52161.00885 | F18: 73928.98892 | G18: 98571.98522 | H18: 123625.6981 | I18: 148679.411 | J18: 171268.8243 | K18: 190572.5048 | L18: 204536.8693 | M18: 212751.2014 | N18: 214394.0679 | O18: 210286.9018 | P18: 200018.9867 | Q18: 185233.1889 | R18: 167161.6583
C19: AMI 1Ph 2e + C | D19: 147406.1032 | E19: 230457.9194 | F19: 328293.8286 | G19: 436565.5681 | H19: 548750.744 | I19: 658761.7885 | J19: 759206.6553 | K19: 843562.9503 | L19: 906177.9322 | M19: 942703.3383 | N19: 950965.0373 | O19: 931397.8554 | P19: 886175.9241 | Q19: 820517.1584 | R19: 739639.4734
C20: AMI 3Ph | D20: 355842.655 | E20: 556845.6682 | F20: 793432.9469 | G20: 1054544.517 | H20: 1326235.192 | I20: 1591674.578 | J20: 1834513.147 | K20: 2038882.239 | L20: 2189874.933 | M20: 2277873.86 | N20: 2298070.335 | O20: 2250464.358 | P20: 2141788.088 | Q20: 1983101.499 | R20: 1787868.907
C21: AMI 3Ph + C | D21: 7595.853104 | E21: 12153.36497 | F21: 17217.26704 | G21: 22787.55931 | H21: 28357.85159 | I21: 33928.14386 | J21: 39498.43614 | K21: 43549.5578 | L21: 47094.28924 | M21: 48613.45986 | N21: 49119.85007 | O21: 48107.06966 | P21: 46081.50883 | Q21: 42536.77738 | R21: 38485.65573
C22: AMI 3Ph CT | D22: 26125.05488 | E22: 41146.96143 | F22: 58781.37348 | G22: 77722.03826 | H22: 97968.95579 | I22: 117562.747 | J22: 135197.159 | K22: 150219.0655 | L22: 161322.2139 | M22: 167853.4776 | N22: 169812.8567 | O22: 165894.0985 | P22: 158056.582 | Q22: 146300.3073 | R22: 131931.5271
D23: =SUM(D17:D22) -> 1309778.834 | E23: =SUM(E17:E22) -> 2050018.23 | F23: 2921027.714 | G23: 3882197.604 | H23: 4881354.904 | I23: 5859637.295 | J23: =SUM(J17:J22) -> 6753841.095 | K23: 7505007.262 | L23: 8061191.88 | M23: 8384975.818 | N23: 8459283.599 | O23: 8284466.253 | P23: 7884793.837 | Q23: 7300366.027 | R23: 6581848.495
B25: EDPR total | C25: =SUM(D16:H16)+SUM(D23:H23) -> 33000254.01
B26: 10 year total | C26: =SUM(D16:M16)+SUM(D23:M23) -> 110914358.7
B29: Capital costs
D32: 2026-27 | E32: 2027-28 | F32: 2028-29 | G32: 2029-30 | H32: 2030-31 | I32: 2031-32 | J32: 2032-33 | K32: 2033-34 | L32: 2034-35 | M32: 2035-36 | N32: 2036-37 | O32: 2037-38 | P32: 2038-39 | Q32: 2039-40 | R32: 2040-41
D33: =D23+D16 -> 2901242.845 | E33: 4540850.372 | F33: 6446025.861 | G33: 8502469.612 | H33: =H23+H16 -> 10609665.32 | I33: 12638534.06 | J33: 14468977.7 | K33: 15984567.27 | L33: 17085305.86 | M33: 17736719.83 | N33: 17876260.01 | O33: 17541299.1 | P33: 16744263.91 | Q33: 15579074.18 | R33: 14114130.82
B35: Total NPV | D35: =NPV(Summary!$B$14,'Option 1'!D33:R33) -> 139025889.6
B38: NPV Breakdown
B41: Reactive failures - Labour | D41: =D16-D43 -> 1317105.141 | E41: 2061427.589 | F41: 2917309.563 | G41: 3823764.767 | H41: 4740783.985 | I41: 5610255.536 | J41: 6385093.228 | K41: 7017734.614 | L41: 7468410.742 | M41: 7739559.318 | N41: 7793546.037 | O41: 7661010.266 | P41: 7332150.455 | Q41: 6851508.412 | R41: 6233761.934
B42: Reactive failures - Materials | D42: =D23-D44 -> 1178800.95 | E42: 1845016.407 | F42: 2628924.943 | G42: 3493977.844 | H42: 4393219.414 | I42: 5273673.565 | J42: 6078456.986 | K42: 6754506.536 | L42: 7255072.692 | M42: 7546478.236 | N42: 7613355.239 | O42: 7456019.627 | P42: 7096314.453 | Q42: 6570329.425 | R42: 5923663.646
B43: Reactive faults - Labour | D43: =D16*'Labour costs'!$I$14 -> 274358.8705 | E43: =OFFSET(E16, 0, 0, 1, 1)*'Labour costs'!$I$14 -> 429404.5534 | F43: =OFFSET(F16, 0, 0, 1, 1)*'Labour costs'!$I$14 -> 607688.5829 | G43: =OFFSET(G16, 0, 0, 1, 1)*'Labour costs'!$I$14 -> 796507.2413 | H43: =OFFSET(H16, 0, 0, 1, 1)*'Labour costs'!$I$14 -> 987526.4313 | I43: =OFFSET(I16, 0, 0, 1, 1)*'Labour costs'!$I$14 -> 1168641.23 | J43: =OFFSET(J16, 0, 0, 1, 1)*'Labour costs'!$I$14 -> 1330043.374 | K43: =OFFSET(K16, 0, 0, 1, 1)*'Labour costs'!$I$14 -> 1461825.394 | L43: =OFFSET(L16, 0, 0, 1, 1)*'Labour costs'!$I$14 -> 1555703.24 | M43: =OFFSET(M16, 0, 0, 1, 1)*'Labour costs'!$I$14 -> 1612184.697 | N43: =OFFSET(N16, 0, 0, 1, 1)*'Labour costs'!$I$14 -> 1623430.371 | O43: =OFFSET(O16, 0, 0, 1, 1)*'Labour costs'!$I$14 -> 1595822.58 | P43: =OFFSET(P16, 0, 0, 1, 1)*'Labour costs'!$I$14 -> 1527319.615 | Q43: =OFFSET(Q16, 0, 0, 1, 1)*'Labour costs'!$I$14 -> 1427199.736 | R43: =OFFSET(R16, 0, 0, 1, 1)*'Labour costs'!$I$14 -> 1298520.391
B44: Reactive Faults - Materials | D44: =D23*'Labour costs'!$D$14 -> 130977.8834 | E44: =E23*'Labour costs'!$D$14 -> 205001.823 | F44: =F23*'Labour costs'!$D$14 -> 292102.7714 | G44: =G23*'Labour costs'!$D$14 -> 388219.7604 | H44: =H23*'Labour costs'!$D$14 -> 488135.4904 | I44: =I23*'Labour costs'!$D$14 -> 585963.7295 | J44: =J23*'Labour costs'!$D$14 -> 675384.1095 | K44: =K23*'Labour costs'!$D$14 -> 750500.7262 | L44: =L23*'Labour costs'!$D$14 -> 806119.188 | M44: =M23*'Labour costs'!$D$14 -> 838497.5818 | N44: =N23*'Labour costs'!$D$14 -> 845928.3599 | O44: =O23*'Labour costs'!$D$14 -> 828446.6253 | P44: =P23*'Labour costs'!$D$14 -> 788479.3837 | Q44: =Q23*'Labour costs'!$D$14 -> 730036.6027 | R44: =R23*'Labour costs'!$D$14 -> 658184.8495
B46: Reactive failures - Labour | D46: =NPV(Summary!$B$14,D41:R41) -> 61340467.73
B47: Reactive failures - Materials | D47: =NPV(Summary!$B$14,D42:R42) -> 58417136.19
B48: Reactive faults - Labour | D48: =NPV(Summary!$B$14,D43:R43) -> 12777492.79
B49: Reactive Faults - Materials | D49: =NPV(Summary!$B$14,D44:R44) -> 6490792.91
B50: Total | D50: =SUM(D46:D49) -> 139025889.6

Sheet Unit rate buildup
B2: Information in this sheet has been deleted because it contains confidential pricing information

Sheet Labour costs
B2: Labour cost estimation
B4: Labour rates | C4: 2024 | D4: 2026-06-01 | H4: Escallation factor to $2026
B5: Specialist metering (Office hours) | C5: 175.9082617 | D5: =$H$5*C5 -> 199.024052 | H5: =1.025*1.025*1.025*1.025*1.025 -> 1.131408213
B6: Specialist metering (After hours) | C6: 234.0990758 | D6: =C6*$H$5 -> 264.8616169
B7: Faults (Linesman) rate | C7: 197.8693641 | D7: =C7*$H$5 -> 223.8710237
B9: Electrician charge out rates | C9: 126.74 | D9: =C9*$H$5 -> 143.3946769
B10: Project manager | C10: 159.28 | D10: =C10*$H$5 -> 180.2107001
B13: Assumptions | H13: Blended rates | I13: Overall percentage
B14: Percentage of failed meters will result in faults truck (i.e. hot water / heating complaints) | D14: 0.1 | H14: =D14*(2*D7) -> 44.77420473 | I14: =H14/H19 -> 0.1723940149
B15: Percentage of meters that have an antenna connected | D15: 0.05
B16: Percentage time increase for 3 phase tasks | D16: 0.8
B17: Percentage of jobs that require 2 person crews | D17: 0.15 | H17: =D17*(2*D5) -> 59.7072156
B18: Percentage refusals and double visits | D18: 0.03 | H18: =D18*(2*D5) -> 11.94144312
H19: =((1-(D14+D17+D18))*D5)+SUM(H14:H18) -> 259.7201809
B22: Replace on fail | H22: Proactive replacement
B23: Meter replaced on remote fail, or events. Combination of fault trucks for hot water and overtime when faults get peaky. | H23: Meter replaced proactively, no triage and minimal travel time.
B25: On site time - Single phase | H25: On site time - Single phase
B26: Activity | C26: Description | D26: Time MOG (hour) | E26: Time (minutes) | H26: Activity | I26: Description | J26: Time (hours) | K26: Time (minutes)
B27: Site arrival | C27: Arrive at site. Find appropriate parking. | D27: 0.1 | E27: =D27*60 -> 6 | H27: Site arrival | I27: Not significant in the context of a proactive replacement | J27: 0.05 | K27: =J27*60 -> 3
B28: Customer Contact | C28: Let the customer know that we are there to replace the meter, Locate meter. | D28: 0.1 | E28: 6 | H28: Customer Contact | I28: Let the customer know that we are there to replace the meter, Locate meter. | J28: 0.1 | K28: =J28*60 -> 6
B29: Complete JSEA | C29: Job safety assessment must be carried out to ensure the site is safe to carry out work. | D29: 0.1 | E29: 6 | H29: Complete JSEA | I29: Job safety assessment must be carried out to ensure the site is safe to carry out work. | J29: 0.1 | K29: =J29*60 -> 6
B30: Triage issue | C30: Is the meter working. If yes, why is it reported as faulty. | D30: 0.2 | E30: 12
B31: Final meter read | C31: Read the information out of the meter if it is not read remotely before removing | D31: 0.1 | E31: 6
B32: Disconnect Supply | C32: Disconnect supply from the site. Confirm that supply is isolated and safety VESI test. | D32: 0.1 | E32: 6 | H32: Disconnect Supply | I32: Disconnect supply from the site. Confirm that supply is isolated. | J32: 0.1 | K32: =J32*60 -> 6
B33: Replace meter | C33: Remove cover, disconnect terminals, reconnect terminals with new meter. Replace terminal cover. | D33: 0.15 | E33: 9 | H33: Replace meter | I33: Remove cover, disconnect terminals, reconnect terminals with new meter. Replace terminal cover. | J33: 0.15 | K33: 9
B34: Antenna change | C34: Some sites have antennas that need to be changed over | D34: =$D$15*0.2 -> 0.01 | E34: =D34*60 -> 0.6 | H34: Antenna change | I34: Some sites have antennas that need to be changed over | J34: =$D$15*0.2 -> 0.01 | K34: 0.6
B35: Reconnect supply | C35: Reconnect supply to site. Confirm that supply has returned to site. | D35: 0.1 | E35: =D35*60 -> 6 | H35: Reconnect supply | I35: Reconnect supply to site. Confirm that supply has returned to site. | J35: 0.1 | K35: 6
B36: Complete NST test | C36: Undertake NST test, need to find an indepenent earth etc. | D36: 0.1 | E36: 6 | H36: Complete NST test | I36: Undertake NST test, need to find an indepenent earth etc. | J36: 0.1 | K36: 6
B37: Seal Equipment / complete paperwork | C37: Re-seal the meter. Close out job and pack up. | D37: 0.1 | E37: 6 | H37: Seal Equipment / complete paperwork | I37: Re-seal the meter. Close out job and pack up. | J37: 0.1 | K37: 6
B38: Time at site (hours) | D38: =SUM(D27:D37) -> 1.16 | E38: =SUM(E27:E37) -> 69.6 | H38: Time at site (hours) | J38: =SUM(J27:J37) -> 0.81 | K38: =SUM(K27:K37) -> 48.6
D39: =H19*D38 -> 301.2754098 | H39: Cost | J39: =J38*D9 -> 116.1496883
B41: On site time - Three phase | H41: On site time - Three phase
B42: Activity | C42: Description | D42: Time MOG (hour) | E42: Time MOG (minutes) | H42: Activity | I42: Description | J42: Time (hours) | K42: Time (minutes)
B43: Site arrival | C43: Arrive at site. Find appropriate parking. | D43: =D27 -> 0.1 | E43: =D43*60 -> 6 | H43: Site arrival | I43: Not significant in the context of a proactive replacement | J43: 0.05 | K43: =J43*60 -> 3
B44: Customer Contact | C44: Let the customer know that we are there to replace the meter, Locate meter. | D44: =D28 -> 0.1 | E44: 6 | H44: Customer Contact | I44: Let the customer know that we are there to replace the meter, Locate meter. | J44: =D44 -> 0.1 | K44: =J44*60 -> 6
B45: Complete JSEA | C45: Job safety assessment must be carried out to ensure the site is safe to carry out work. | D45: 0.1 | E45: 6 | H45: Complete JSEA | I45: Job safety assessment must be carried out to ensure the site is safe to carry out work. | J45: =D45 -> 0.1 | K45: =J45*60 -> 6
B46: Triage issue | C46: Is the meter working. If yes, why is it reported as faulty. | D46: 0.3 | E46: 18
B47: Final meter read | C47: Read the information out of the meter if it is not read remotely before removing | D47: =D31 -> 0.1 | E47: 6
B48: Disconnect Supply | C48: Disconnect supply from the site. Confirm that supply is isolated and safety VESI test. | D48: 0.15 | E48: 9 | H48: Disconnect Supply | I48: Disconnect supply from the site. Confirm that supply is isolated. | J48: =D48 -> 0.15 | K48: =J48*60 -> 9
B49: Replace meter | C49: Remove cover, disconnect terminals, reconnect terminals with new meter. Replace terminal cover. | D49: =D33*($D$16+1) -> 0.27 | E49: 16.2 | H49: Replace meter | I49: Remove cover, disconnect terminals, reconnect terminals with new meter. Replace terminal cover. | J49: =D49 -> 0.27 | K49: =J49*60 -> 16.2
B50: Antenna change | C50: Some sites have antennas that need to be changed over | D50: =D34 -> 0.01 | E50: 0.6 | H50: Antenna change | I50: Some sites have antennas that need to be changed over | J50: =J34 -> 0.01 | K50: =K34 -> 0.6
B51: Reconnect supply | C51: Reconnect supply to site. Confirm that supply has returned to site. | D51: 0.15 | E51: 9 | H51: Reconnect supply | I51: Reconnect supply to site. Confirm that supply has returned to site. | J51: =D51 -> 0.15 | K51: =J51*60 -> 9
B52: Complete NST test | C52: Undertake NST test, need to find an indepenent earth etc. | D52: 0.2 | E52: 12 | H52: Complete NST test | I52: Undertake NST test, need to find an indepenent earth etc. | J52: =D52 -> 0.2 | K52: =J52*60 -> 12
B53: Seal Equipment / complete paperwork | C53: Re-seal the meter. Close out job and pack up. | D53: 0.1 | E53: 6 | H53: Seal Equipment / complete paperwork | I53: Re-seal the meter. Close out job and pack up. | J53: =D53 -> 0.1 | K53: =J53*60 -> 6
B54: Time at site (hours) | D54: =SUM(D43:D53) -> 1.58 | E54: =SUM(E43:E53) -> 94.8 | H54: Time at site (hours) | J54: =SUM(J43:J53) -> 1.13 | K54: =SUM(K43:K53) -> 67.8
D55: =D54*H19 -> 410.3578858 | H55: Cost | J55: =J54*D9 -> 162.0359849
B58: Travel time | H58: Travel time
B59: Average travel time per meter | H59: Average travel time per meter
B60: DB | C60: Average cost | D60: Time MOG (hour) | E60: Time MOG (minutes) | H60: DB | I60: Average cost | J60: Time (hours) | K60: Time (minutes)
B61: Citipower | C61: 108.216742 | D61: 0.4166666667 | E61: 25 | H61: Citipower | I61: =J61*D9 -> 16.72937897 | J61: =K61/60 -> 0.1166666667 | K61: 7
D64: Citipower
B65: Base rate | D65: =($D$61+$D$38)*D5 -> 313.7945886
B66: Faults rate | D66: =($D$61+$D$38)*D7*2 -> 705.9399613
B69: Replacement efficiency scale
B71: Assumptions | H71: Notes
C72: Urban | H72: Reduction in travel time is not likely to be significant if the crew needs to go back to a depot. The assumptions: - Travel time reduction is likely to reduce by around 25% in rural areas - Minimal reduction in urban area As the failure rate increases we would move to replace on fail for most meters resulting in the removal to triage
B73: Resulting reduction in travel time | C73: 0.1
B74: Move from triage to replace on fail | C74: =D46/D54 -> 0.1898734177
B75: Percentage rural (Powercor) | C75: 0.3
B76: Percentage of meter >10 years old | C76: 0.8
B78: Resultant efficiency @12% | C78: =((E54*(1-C74))+((1-C73)*E61))/(E61+E54) -> 0.8288814691
B81: Efficiency scale (Failure rate >2%) | C81: Citipower
B82: 0 | C82: 1
B83: =ROUND(B82+0.001,3) -> 0.001 | C83: 1
B84: 0.002 | C84: 1
B85: 0.003 | C85: 1
B86: 0.004 | C86: 1
B87: 0.005 | C87: 1
B88: 0.006 | C88: 1
B89: 0.007 | C89: 1
B90: 0.008 | C90: 1
B91: 0.009 | C91: 1
B92: 0.01 | C92: 1
B93: 0.011 | C93: 1
B94: 0.012 | C94: 1
B95: 0.013 | C95: 1
B96: 0.014 | C96: 1
B97: 0.015 | C97: 1
B98: 0.016 | C98: 1
B99: 0.017 | C99: 1
B100: 0.018 | C100: 1
B101: 0.019 | C101: 1
B102: 0.02 | C102: 1
B103: 0.021 | C103: =1-(((100/10)*(B103-0.02))*(1-$C$78)) -> 0.9982888147
B104: 0.022 | C104: 0.9965776294
B105: 0.023 | C105: 0.9948664441
B106: 0.024 | C106: 0.9931552588
B107: 0.025 | C107: 0.9914440735
B108: 0.026 | C108: 0.9897328881
B109: 0.027 | C109: 0.9880217028
B110: 0.028 | C110: 0.9863105175
B111: 0.029 | C111: 0.9845993322
B112: 0.03 | C112: 0.9828881469
B113: 0.031 | C113: 0.9811769616
B114: 0.032 | C114: 0.9794657763
B115: =ROUND(B114+0.001,3) -> 0.033 | C115: 0.977754591
B116: 0.034 | C116: 0.9760434057
B117: 0.035 | C117: 0.9743322204
B118: 0.036 | C118: 0.9726210351
B119: 0.037 | C119: 0.9709098497
B120: 0.038 | C120: 0.9691986644
B121: 0.039 | C121: 0.9674874791
B122: 0.04 | C122: 0.9657762938
B123: 0.041 | C123: 0.9640651085
B124: 0.042 | C124: 0.9623539232
B125: 0.043 | C125: 0.9606427379
B126: 0.044 | C126: 0.9589315526
B127: 0.045 | C127: 0.9572203673
B128: 0.046 | C128: 0.955509182
B129: 0.047 | C129: 0.9537979967
B130: 0.048 | C130: 0.9520868114
B131: 0.049 | C131: 0.950375626
B132: 0.05 | C132: 0.9486644407
B133: 0.051 | C133: 0.9469532554
B134: 0.052 | C134: 0.9452420701
B135: 0.053 | C135: =1-(((100/10)*(B135-0.02))*(1-$C$78)) -> 0.9435308848
B136: 0.054 | C136: 0.9418196995
B137: 0.055 | C137: 0.9401085142
B138: 0.056 | C138: 0.9383973289
B139: 0.057 | C139: 0.9366861436
B140: 0.058 | C140: 0.9349749583
B141: 0.059 | C141: 0.933263773
B142: 0.06 | C142: 0.9315525876
B143: 0.061 | C143: 0.9298414023
B144: 0.062 | C144: 0.928130217
B145: 0.063 | C145: 0.9264190317
B146: 0.064 | C146: 0.9247078464
B147: =ROUND(B146+0.001,3) -> 0.065 | C147: 0.9229966611
B148: 0.066 | C148: 0.9212854758
B149: 0.067 | C149: 0.9195742905
B150: 0.068 | C150: 0.9178631052
B151: 0.069 | C151: 0.9161519199
B152: 0.07 | C152: 0.9144407346
B153: 0.071 | C153: 0.9127295492
B154: 0.072 | C154: 0.9110183639
B155: 0.073 | C155: 0.9093071786
B156: 0.074 | C156: 0.9075959933
B157: 0.075 | C157: 0.905884808
B158: 0.076 | C158: 0.9041736227
B159: 0.077 | C159: 0.9024624374
B160: 0.078 | C160: 0.9007512521
B161: 0.079 | C161: 0.8990400668
B162: 0.08 | C162: 0.8973288815
B163: 0.081 | C163: 0.8956176962
B164: 0.082 | C164: 0.8939065109
B165: 0.083 | C165: 0.8921953255
B166: 0.084 | C166: 0.8904841402
B167: 0.085 | C167: =1-(((100/10)*(B167-0.02))*(1-$C$78)) -> 0.8887729549
B168: 0.086 | C168: 0.8870617696
B169: 0.087 | C169: 0.8853505843
B170: 0.088 | C170: 0.883639399
B171: 0.089 | C171: 0.8819282137
B172: 0.09 | C172: 0.8802170284
B173: 0.091 | C173: 0.8785058431
B174: 0.092 | C174: 0.8767946578
B175: 0.093 | C175: 0.8750834725
B176: 0.094 | C176: 0.8733722871
B177: 0.095 | C177: 0.8716611018
B178: 0.096 | C178: 0.8699499165
B179: =ROUND(B178+0.001,3) -> 0.097 | C179: 0.8682387312
B180: 0.098 | C180: 0.8665275459
B181: 0.099 | C181: 0.8648163606
B182: 0.1 | C182: 0.8631051753
B183: 0.101 | C183: 0.86139399
B184: 0.102 | C184: 0.8596828047
B185: 0.103 | C185: 0.8579716194
B186: 0.104 | C186: 0.8562604341
B187: 0.105 | C187: 0.8545492487
B188: 0.106 | C188: 0.8528380634
B189: 0.107 | C189: 0.8511268781
B190: 0.108 | C190: 0.8494156928
B191: 0.109 | C191: 0.8477045075
B192: 0.11 | C192: 0.8459933222
B193: 0.111 | C193: 0.8442821369
B194: 0.112 | C194: 0.8425709516
B195: 0.113 | C195: 0.8408597663
B196: 0.114 | C196: 0.839148581
B197: 0.115 | C197: 0.8374373957
B198: 0.116 | C198: 0.8357262104
B199: 0.117 | C199: =1-(((100/10)*(B199-0.02))*(1-$C$78)) -> 0.834015025
B200: 0.118 | C200: 0.8323038397
B201: 0.119 | C201: 0.8305926544
B202: 0.12 | C202: 0.8288814691

Sheet Replacement program breakdown
B2: Program level costs
B4: Assumptions
B5: Working days per year | C5: 251
B6: Project duration (days) | C6: =C5*5 -> 1255
B7: Labour rate - Project management (daily) | C7: 900
B8: Labour rate - SME metering (daily) | C8: 1200
B11: Project element (Activity | C11: Category | D11: Scope | E11: Time FTE | F11: Duration | G11: Cost | H11: Notes | J11: 2026-27 | K11: 2027-28 | L11: 2028-29 | M11: 2029-30 | N11: 2030-31
J12: 0.2 | K12: 0.4 | L12: 0.6 | M12: 0.8 | N12: 1
B13: 1.0 ProgramManagement | C13: High level category
B14: 1.1 Industry Planning & Liaison | C14: Program management | D14: Partially in scope | E14: 0.2 | F14: 1 | G14: =F14*E14*$C$7*$C$6 -> 225900 | H14: There will be a some industry communications etc | J14: =IF($F14>=$J$12,1,$F14*5)*$C$5*$C$7*$E14 -> 45180 | K14: =IF($F14>=K$12,1,IF((($F14-K$12)>=0),($F14-K$12)*5,0))*$C$5*$C$7*$E14 -> 45180 | L14: =IF($F14>=L$12,1,IF((($F14-L$12)>=0),($F14-L$12)*5,0))*$C$5*$C$7*$E14 -> 45180 | M14: =IF($F14>=M$12,1,IF((($F14-M$12)>=0),($F14-M$12)*5,0))*$C$5*$C$7*$E14 -> 45180 | N14: =IF($F14>=N$12,1,IF((($F14-N$12)>=0),($F14-N$12)*5,0))*$C$5*$C$7*$E14 -> 45180
B15: 1.2 PMO: ProgramEstablishment | C15: Program management | D15: In scope | E15: 2 | F15: 0.2 | G15: =F15*E15*$C$7*$C$6 -> 451800 | H15: Establish the PMO in the first year | J15: 451800 | K15: =IF($F15>=K$12,1,IF((($F15-K$12)>=0),($F15-K$12)*5,0))*$C$5*$C$7*$E15 -> 0 | L15: 0 | M15: 0 | N15: 0
B16: 1.3 PMO: ProgramOperation Mode | C16: Program management | D16: In scope | E16: 1 | F16: 0.8 | G16: =F16*E16*$C$7*$C$6 -> 903600 | J16: 225900 | K16: 225900 | L16: 225900 | M16: 225900 | N16: 0
B17: 1.4 PMO: ProgramClose-Down | C17: Program management | D17: Out of scope | H17: Will not close down until next EDPR | J17: 0 | K17: 0 | L17: 0 | M17: 0 | N17: 0
B18: 1.5 ProgramManagement Tools | C18: Program management | D18: In scope | E18: 0 | F18: 0.2 | G18: =F18*E18*$C$7*$C$6 -> 0 | H18: Should already have tools, no cost | J18: 0 | K18: 0 | L18: 0 | M18: 0 | N18: 0
B19: 1.6 Commercial & Procurement | C19: Procurement | D19: In scope | E19: 0.5 | F19: 0.2 | G19: =F19*E19*$C$7*$C$6 -> 112950 | H19: Only in the first year | J19: 112950 | K19: 0 | L19: 0 | M19: 0 | N19: 0
B20: 1.7 Management of the AMI Program | C20: Program management | D20: In scope | E20: 1 | F20: 1 | G20: =F20*E20*$C$7*$C$6 -> 1129500 | H20: PMO manager | J20: 225900 | K20: 225900 | L20: 225900 | M20: 225900 | N20: 225900
B21: 1.8 AMI ProgramFinance Reporting | C21: Program management | D21: In scope | E21: 0.3 | F21: 1 | G21: =F21*E21*$C$7*$C$6 -> 338850 | J21: 67770 | K21: 67770 | L21: 67770 | M21: 67770 | N21: 67770
B22: 1.9 AMI Collaboration Sites (Sharepoint) | C22: Program management | D22: Out of scope | J22: 0 | K22: 0 | L22: 0 | M22: 0 | N22: 0
B23: 1.10 Reporting Metering ProcessPerformance | C23: Program management | D23: In scope | E23: 0 | F23: 1 | G23: =F23*E23*$C$7*$C$6 -> 0 | H23: Should already have tools | J23: 0 | K23: 0 | L23: 0 | M23: 0 | N23: 0
B24: 1.11 AMI Field Deployment Reporting | C24: Program management | D24: In scope | E24: 0.1 | F24: 1 | G24: =F24*E24*$C$7*$C$6 -> 112950 | J24: 22590 | K24: 22590 | L24: 22590 | M24: 22590 | N24: 22590
B25: 1.12 Meter SupplyContract Review | C25: Procurement | D25: In scope | E25: 0 | F25: 1 | G25: =F25*E25*$C$7*$C$6 -> 0 | H25: Covered above | J25: 0 | K25: 0 | L25: 0 | M25: 0 | N25: 0
B26: 1.13 Gateway Review | C26: Out of scope | D26: Out of scope | J26: 0 | K26: 0 | L26: 0 | M26: 0 | N26: 0
B27: 1.14 HAN Pilot | C27: Out of scope | D27: Out of scope | H27: Possibly if we move to WiFi etc | J27: 0 | K27: 0 | L27: 0 | M27: 0 | N27: 0
B28: 1.15 Remote Configuration of Meters | C28: AMI operations | D28: In scope | E28: 0.1 | F28: 1 | G28: 112950 | J28: 22590 | K28: 22590 | L28: 22590 | M28: 22590 | N28: 22590
B29: 1.16 Implement Reporting | C29: Program management | D29: In scope | E29: 0.1 | F29: 1 | G29: 112950 | J29: 22590 | K29: 22590 | L29: 22590 | M29: 22590 | N29: 22590
B30: 1.18 CIS to UIQ Automation for BAU Process | C30: Out of scope | D30: Out of scope | H30: Already done | J30: 0 | K30: 0 | L30: 0 | M30: 0 | N30: 0
J31: 0 | K31: 0 | L31: 0 | M31: 0 | N31: 0
B32: 2.0 Technology | J32: 0 | K32: 0 | L32: 0 | M32: 0 | N32: 0
B33: 2.1 RFP | C33: Procurement | D33: In scope | E33: 0.5 | F33: 0.2 | G33: =F33*E33*$C$7*$C$6 -> 112950 | H33: If we are doing a mass rollout there will need to be best pricing etc | J33: 112950 | K33: 0 | L33: 0 | M33: 0 | N33: 0
B34: 2.2 DPI Trials | C34: AMI technology | D34: Partially in scope | E34: 1 | F34: 0.1 | G34: =F34*E34*$C$7*$C$6 -> 112950 | H34: Half a year of testing | J34: 112950 | K34: 0 | L34: 0 | M34: 0 | N34: 0
B35: 2.3 Establish Backhaul | C35: Out of scope | D35: Out of scope | H35: Possibly augmentation not rollout | J35: 0 | K35: 0 | L35: 0 | M35: 0 | N35: 0
B36: 2.4 Technology Acceptance | C36: AMI technology | D36: In scope | E36: 2 | F36: 1 | G36: =F36*E36*$C$8*$C$6 -> 3012000 | H36: Needed for the DI meters | J36: 451800 | K36: 451800 | L36: 451800 | M36: 451800 | N36: 451800
B37: 2.5 Pilot & Roll-out Preparation | D37: In scope | E37: 1 | F37: 0.2 | G37: 225900 | J37: 225900 | K37: 0 | L37: 0 | M37: 0 | N37: 0
B38: 2.6 Establish Test Lab | D38: In scope | G38: 200000 | H38: DI Test lab for new meters and issues | J38: =G38 -> 200000 | K38: 0 | L38: 0 | M38: 0 | N38: 0
B39: 2.7 Establish Asset Mgmt System | D39: Partially in scope | E39: 0 | F39: 1 | G39: 300000 | H39: Would be good to update asset management systems | J39: =IF($F39>=$J$12,1,$F39*5)*$C$5*$C$7*$E39 -> 0 | K39: 0 | L39: 0 | M39: 0 | N39: 0
B40: 2.8 Establish Security Systems | C40: Out of scope | D40: Out of scope | J40: 0 | K40: 0 | L40: 0 | M40: 0 | N40: 0
B41: 2.9 NMS Implementation | C41: Out of scope | D41: Out of scope | J41: 0 | K41: =IF($F41>=K$12,1,IF((($F41-K$12)>=0),($F41-K$12)*5,0))*$C$5*$C$7*$E41 -> 0 | L41: 0 | M41: 0 | N41: 0
B42: 2.11 Establish ACC | C42: Out of scope | D42: Out of scope | J42: 0 | K42: 0 | L42: 0 | M42: 0 | N42: 0
B43: 2.12 AMI Meter Solutions | C43: Out of scope | D43: Out of scope | J43: 0 | K43: 0 | L43: 0 | M43: 0 | N43: 0
B44: 2.13 NMS Integration | C44: Out of scope | D44: Out of scope | J44: 0 | K44: 0 | L44: 0 | M44: 0 | N44: 0
B45: 2.14 DCI Sentry | C45: Out of scope | D45: Out of scope | J45: 0 | K45: 0 | L45: 0 | M45: 0 | N45: 0
B46: 2.15 Develop HomeArea Network (HAN) Capability | C46: Out of scope | D46: Out of scope | J46: 0 | K46: 0 | L46: 0 | M46: 0 | N46: 0
B47: 2.19 BAU & Support (Pre-deploy) | C47: Out of scope | D47: Out of scope | J47: 0 | K47: 0 | L47: 0 | M47: 0 | N47: 0
B48: 2.20 AMI Generation 2 Scoping | C48: Out of scope | D48: Out of scope | J48: 0 | K48: 0 | L48: 0 | M48: 0 | N48: 0
B49: 2.21 UIQ Upgrade | D49: In scope | H49: Captured separately | J49: 0 | K49: 0 | L49: 0 | M49: 0 | N49: 0
B50: 2.31 AMI Operate Centre Setup | C50: Out of scope | D50: Out of scope | J50: 0 | K50: 0 | L50: 0 | M50: 0 | N50: 0
B51: 2.32 TAG Automation | C51: AMI technology | D51: Out of scope | J51: 0 | K51: 0 | L51: 0 | M51: 0 | N51: 0
B52: 2.33 Information Security Management System (ISMS) | D52: Out of scope | J52: 0 | K52: 0 | L52: 0 | M52: 0 | N52: 0
J53: 0 | K53: 0 | L53: 0 | M53: 0 | N53: 0
B54: 3.0 Business Transformation | J54: 0 | K54: 0 | L54: 0 | M54: 0 | N54: 0
B55: 3.1 Transformation Strategy | C55: Out of scope | D55: Out of scope | J55: 0 | K55: 0 | L55: 0 | M55: 0 | N55: 0
B56: 3.2 OpportunityDevelopment | C56: Out of scope | D56: Out of scope | J56: 0 | K56: 0 | L56: 0 | M56: 0 | N56: 0
B57: 3.3 Scope & Structure | C57: Out of scope | D57: Out of scope | J57: 0 | K57: 0 | L57: 0 | M57: 0 | N57: 0
B58: 3.4 Process Architecture Management | C58: Out of scope | D58: Out of scope | J58: 0 | K58: 0 | L58: 0 | M58: 0 | N58: 0
B59: 3.5 OrganisationalChange Management | C59: Out of scope | D59: Out of scope | J59: 0 | K59: 0 | L59: 0 | M59: 0 | N59: 0
B60: 3.7 ImplementationManagement | C60: Out of scope | D60: Out of scope | J60: 0 | K60: 0 | L60: 0 | M60: 0 | N60: 0
B61: 3.8 Resource Management | D61: In scope | E61: 0.1 | F61: 1 | G61: =F61*E61*$C$7*$C$6 -> 112950 | J61: 22590 | K61: 22590 | L61: 22590 | M61: 22590 | N61: 22590
B62: 3.9 Performance Management | D62: In scope | E62: 0.1 | F62: 1 | G62: =F62*E62*$C$7*$C$6 -> 112950 | J62: 22590 | K62: 22590 | L62: 22590 | M62: 22590 | N62: 22590
B63: 3.10 Network Impact Assessment | D63: In scope | E63: 0 | F63: 1 | G63: 0 | J63: 0 | K63: 0 | L63: 0 | M63: 0 | N63: 0
B64: 3.11 Continual Improvement | D64: In scope | E64: 0 | F64: 1 | G64: 0 | J64: 0 | K64: 0 | L64: 0 | M64: 0 | N64: 0
B65: 3.12 Scope Assessment – Vic. AMI Program Ph2(Active 2012) | C65: Out of scope | D65: Out of scope | J65: 0 | K65: 0 | L65: 0 | M65: 0 | N65: 0
B66: 3.13 AMI Operating Model Implementation | C66: Out of scope | D66: Out of scope | J66: 0 | K66: 0 | L66: 0 | M66: 0 | N66: 0
B67: 3.14 Transition Planning & Implementation | D67: Partially in scope | E67: 0.1 | F67: 1 | G67: 112950 | J67: 22590 | K67: 22590 | L67: 22590 | M67: 22590 | N67: 22590
J68: 0 | K68: 0 | L68: 0 | M68: 0 | N68: 0
B69: 4.0 Information Technology | J69: 0 | K69: 0 | L69: 0 | M69: 0 | N69: 0
B70: 4.1 IT ProgramManagement | D70: Partially in scope | E70: 0.5 | F70: 1 | G70: =F70*E70*$C$7*$C$6 -> 564750 | J70: 112950 | K70: 112950 | L70: 112950 | M70: 112950 | N70: 112950
B71: 4.2 MCR A and Faults Management Mobility | D71: In scope | G71: 0 | H71: Mobility solutions for field crew - will need to provide ipads etc as well as mobility | J71: =G71 -> 0 | K71: 0 | L71: 0 | M71: 0 | N71: 0
B72: 4.4 Interval Meter Billing (IMB) | C72: Out of scope | D72: Out of scope | J72: =IF($F72>=$J$12,1,$F72*5)*$C$5*$C$7*$E72 -> 0 | K72: 0 | L72: 0 | M72: 0 | N72: 0
B73: 4.5 MMS & Scaling | C73: Out of scope | D73: Out of scope | J73: 0 | K73: 0 | L73: 0 | M73: 0 | N73: 0
B74: 4.6 Systems Integration(USB) Establishment | C74: Out of scope | D74: Out of scope | J74: 0 | K74: 0 | L74: 0 | M74: 0 | N74: 0
B75: 4.7 Infrastructure Development | C75: Out of scope | D75: Out of scope | J75: 0 | K75: 0 | L75: 0 | M75: 0 | N75: 0
B76: 4.8 AMI Reporting | C76: Out of scope | D76: Out of scope | J76: 0 | K76: 0 | L76: 0 | M76: 0 | N76: 0
B77: 4.9 Systems Integration | C77: Out of scope | D77: Out of scope | J77: 0 | K77: 0 | L77: 0 | M77: 0 | N77: 0
B78: 4.10 Type 6 Meter DataTime Reference | C78: Out of scope | D78: Out of scope | J78: 0 | K78: 0 | L78: 0 | M78: 0 | N78: 0
B79: 4.11 Infrastructure Production | C79: Out of scope | D79: Out of scope | J79: 0 | K79: 0 | L79: 0 | M79: 0 | N79: 0
B80: 4.12 Infrastr’ctr Disaster Recovery | C80: Out of scope | D80: Out of scope | J80: 0 | K80: 0 | L80: 0 | M80: 0 | N80: 0
B81: 4.13 Infrastructure Growth 2010 | C81: Out of scope | D81: Out of scope | J81: 0 | K81: 0 | L81: 0 | M81: 0 | N81: 0
B82: 4.14 Oracle Fusion 11g Technical Upgrade | C82: Out of scope | D82: Out of scope | J82: 0 | K82: 0 | L82: 0 | M82: 0 | N82: 0
B83: 4.15 Field Systems Enhancement | C83: Out of scope | D83: Out of scope | J83: 0 | K83: 0 | L83: 0 | M83: 0 | N83: 0
B84: 4.16 AMI Oracle 11G Migration | C84: Out of scope | D84: Out of scope | J84: 0 | K84: 0 | L84: 0 | M84: 0 | N84: 0
B85: 4.17 IEE / MTS Upgrade | C85: Out of scope | D85: Out of scope | H85: Assume we would not need an upgrade as the meter data should not change | J85: 0 | K85: 0 | L85: 0 | M85: 0 | N85: 0
B86: 4.18 Infrastructure Growth 2011 Implementation | C86: Out of scope | D86: Out of scope | J86: 0 | K86: 0 | L86: 0 | M86: 0 | N86: 0
B87: 4.19 Infrastructure Growth 2012 | C87: Out of scope | D87: Out of scope | J87: 0 | K87: 0 | L87: 0 | M87: 0 | N87: 0
B88: 4.20 NMS Hardware Entity Name Upgrade to 1.2M meters WBS # | C88: Out of scope | D88: Out of scope | J88: 0 | K88: 0 | L88: 0 | M88: 0 | N88: 0
B89: 4.26 Data Warehouse/Analytics Tool | C89: Out of scope | D89: Out of scope | J89: 0 | K89: 0 | L89: 0 | M89: 0 | N89: 0
B90: 4.27 MobilityConnections | C90: In scope | D90: In scope | J90: 0 | K90: 0 | L90: 0 | M90: 0 | N90: 0
B91: 4.31 AMI IT Security | C91: Out of scope | D91: Out of scope | J91: 0 | K91: 0 | L91: 0 | M91: 0 | N91: 0
B92: 4.35 IEE License Growth | C92: Out of scope | D92: Out of scope | J92: 0 | K92: 0 | L92: 0 | M92: 0 | N92: 0
B93: 4.37 Service Suite Upgrade | C93: Out of scope | D93: Out of scope | J93: 0 | K93: 0 | L93: 0 | M93: 0 | N93: 0
B94: 4.38 Rollout Decomm Project | C94: Out of scope | D94: Out of scope | J94: 0 | K94: 0 | L94: 0 | M94: 0 | N94: 0
B95: 4.39 Infrastructure Growth 2013 | C95: Out of scope | D95: Out of scope | J95: 0 | K95: 0 | L95: 0 | M95: 0 | N95: 0
B96: 4.40 Infrastructure Growth 2014 | C96: Out of scope | D96: Out of scope | J96: 0 | K96: 0 | L96: 0 | M96: 0 | N96: 0
B97: 4.41 Infrastructure Growth 2015 | C97: Out of scope | D97: Out of scope | J97: 0 | K97: 0 | L97: 0 | M97: 0 | N97: 0
B98: 4.42 Infrastructure Growth 2016 | C98: Out of scope | D98: Out of scope | J98: 0 | K98: 0 | L98: 0 | M98: 0 | N98: 0
B99: 4.44 IDAM Technical Upgrade | C99: Out of scope | D99: Out of scope | J99: 0 | K99: 0 | L99: 0 | M99: 0 | N99: 0
B100: 4.45 Faults MobilityRefinements | C100: Out of scope | D100: Out of scope | J100: 0 | K100: 0 | L100: 0 | M100: 0 | N100: 0
J101: 0 | K101: 0 | L101: 0 | M101: 0 | N101: 0
B102: 5.0 Field Implementation | J102: 0 | K102: 0 | L102: 0 | M102: 0 | N102: 0
B103: 5.1 Field Implementation Project Scoping | D103: In scope | E103: 1 | F103: 0.2 | G103: =F103*E103*$C$7*$C$6 -> 225900 | J103: 225900 | K103: 0 | L103: 0 | M103: 0 | N103: 0
B104: 5.2 DeploymentPlanning | D104: In scope | E104: 0.5 | F104: 1 | G104: =F104*E104*$C$7*$C$6 -> 564750 | J104: =IF($F104>=$J$12,1,$F104*5)*$C$5*$C$7*$E104 -> 112950 | K104: 112950 | L104: 112950 | M104: 112950 | N104: =IF($F104>=N$12,1,IF((($F104-N$12)>=0),($F104-N$12)*5,0))*$C$5*$C$7*$E104 -> 112950
B105: 5.3 EnablingTechnology | D105: In scope | E105: 0.1 | F105: 1 | G105: 112950 | J105: 22590 | K105: 22590 | L105: 22590 | M105: 22590 | N105: 22590
B106: 5.4 Resource Mobilisation | D106: In scope | E106: 1 | F106: 1 | G106: 1129500 | J106: 225900 | K106: 225900 | L106: 225900 | M106: 225900 | N106: 225900
B107: 5.5 OrganisationalChange Management | D107: In scope | E107: 0 | F107: 1 | G107: 0 | J107: 0 | K107: 0 | L107: 0 | M107: 0 | N107: 0
B108: 5.6 QualityManagement | D108: In scope | E108: 2 | F108: 1 | G108: 2259000 | H108: Auditing | J108: 451800 | K108: 451800 | L108: 451800 | M108: 451800 | N108: 451800
B109: 5.7 Management & Planning | D109: In scope | E109: 0 | F109: 1 | G109: 0 | J109: 0 | K109: 0 | L109: 0 | M109: 0 | N109: 0
B110: 5.8 Meter Installation Contract Review | D110: In scope | E110: 0 | F110: 1 | G110: 0 | J110: 0 | K110: 0 | L110: 0 | M110: 0 | N110: 0
J111: 0 | K111: 0 | L111: 0 | M111: 0 | N111: 0
B112: 7.0 Regulation | J112: 0 | K112: 0 | L112: 0 | M112: 0 | N112: 0
B113: 7.1 Tariff Optimisation | C113: Out of scope | D113: Out of scope | H113: Should not need any changes in tariffs etc. | J113: 0 | K113: 0 | L113: 0 | M113: 0 | N113: 0
B114: 7.2 Price Review Process | C114: Out of scope | D114: Out of scope | J114: 0 | K114: 0 | L114: 0 | M114: 0 | N114: 0
B115: 7.3 Accruals | C115: Out of scope | D115: Out of scope | J115: 0 | K115: 0 | L115: 0 | M115: 0 | N115: 0
B116: 7.4 Tariff Revenue | C116: Out of scope | D116: Out of scope | J116: 0 | K116: 0 | L116: 0 | M116: 0 | N116: 0
B117: 7.5 Price Review 2016-2020 | C117: Out of scope | D117: Out of scope | J117: 0 | K117: 0 | L117: 0 | M117: 0 | N117: 0
B118: 7.6 Transitional Feed In Tariff (TFIT) | C118: Out of scope | D118: Out of scope | J118: 0 | K118: 0 | L118: 0 | M118: 0 | N118: 0
B119: 7.7 Monthly Billing | C119: Out of scope | D119: Out of scope | J119: 0 | K119: 0 | L119: 0 | M119: 0 | N119: 0
B120: 7.8 Flexible Pricing | C120: Out of scope | D120: Out of scope | J120: 0 | K120: 0 | L120: 0 | M120: 0 | N120: 0
J121: 0 | K121: 0 | L121: 0 | M121: 0 | N121: 0
B122: 8.0 Customer Management | J122: 0 | K122: 0 | L122: 0 | M122: 0 | N122: 0
B123: 8.1 AMI Customer Strategy & RetailerManagement | D123: Partially in scope | E123: 0.3 | F123: 1 | G123: =F123*E123*$C$7*$C$6 -> 338850 | J123: 67770 | K123: 67770 | L123: 67770 | M123: 67770 | N123: 67770
B124: 8.2 Customer Interaction & Treatment Pre-deployment | C124: Out of scope | D124: Out of scope | J124: 0 | K124: 0 | L124: 0 | M124: 0 | N124: 0
B125: 8.3 Customer Self-Service | C125: Out of scope | D125: Out of scope | J125: 0 | K125: 0 | L125: 0 | M125: 0 | N125: 0
B126: 8.4 Customer Response Plan to support the AMI rollout Pre-deployment | C126: Out of scope | D126: Out of scope | J126: 0 | K126: 0 | L126: 0 | M126: 0 | N126: 0
B127: 8.5 Revenue Management Pre-deployment | C127: Out of scope | D127: Out of scope | J127: 0 | K127: 0 | L127: 0 | M127: 0 | N127: 0
B128: 8.6 Customer Energy Data Access (CEDA) Trial | C128: Out of scope | D128: Out of scope | J128: 0 | K128: 0 | L128: 0 | M128: 0 | N128: 0
B129: 8.7 Meter Event Analysis for Revenue Protection | C129: Out of scope | D129: Out of scope | J129: 0 | K129: 0 | L129: 0 | M129: 0 | N129: 0
B130: 8.8 Network Analysis for Revenue Protection | C130: Out of scope | D130: Out of scope | J130: 0 | K130: 0 | L130: 0 | M130: 0 | N130: 0
B131: 8.10 CEDA Implementation | C131: Out of scope | D131: Out of scope | J131: 0 | K131: 0 | L131: 0 | M131: 0 | N131: 0
B132: 8.12 Customer & Community Engagement & Education | D132: Partially in scope | E132: 0.3 | F132: 1 | G132: =F132*E132*$C$7*$C$6 -> 338850 | H132: No doubt a rollout will cause more complaints | J132: 67770 | K132: 67770 | L132: 67770 | M132: 67770 | N132: 67770
B133: 8.13 TCE to reference UIQ | C133: Out of scope | D133: Out of scope | J133: 0 | K133: 0 | L133: 0 | M133: 0 | N133: 0
B134: 8.14 Customer Portal Refinements | C134: Out of scope | D134: Out of scope | J134: 0 | K134: 0 | L134: 0 | M134: 0 | N134: 0
J135: 0 | K135: 0 | L135: 0 | M135: 0 | N135: 0
B136: 10.0 Meter Strategy | J136: =IF($F136>=$J$12,1,$F136*5)*$C$5*$C$7*$E136 -> 0 | K136: 0 | L136: 0 | M136: 0 | N136: 0
B137: 10.1 Meter Strategies | D137: Partially in scope | E137: 0 | F137: 1 | G137: =F137*E137*$C$7*$C$6 -> 0 | J137: 0 | K137: 0 | L137: 0 | M137: 0 | N137: 0
B138: 10.2 Meter Provisioning Policy & Stds -Release 1 / 1A | C138: Out of scope | D138: Out of scope | J138: 0 | K138: 0 | L138: 0 | M138: 0 | N138: 0
B139: 10.3 Meter Provision Policy & Stds -Release 2 & 3 | C139: Out of scope | D139: Out of scope | J139: 0 | K139: 0 | L139: 0 | M139: 0 | N139: 0
B140: 10.4 GIS | C140: Out of scope | D140: Out of scope | J140: 0 | K140: 0 | L140: 0 | M140: 0 | N140: 0
B141: 10.5 Asset Management | D141: Partially in scope | E141: 1 | F141: 1 | G141: =F141*E141*$C$7*$C$6 -> 1129500 | J141: 225900 | K141: 225900 | L141: 225900 | M141: 225900 | N141: 225900
B142: 10.6 BAU Transition | C142: Out of scope | D142: Out of scope | J142: 0 | K142: 0 | L142: 0 | M142: 0 | N142: 0
B143: 10.7 BAU & Support (Technical) | C143: Out of scope | D143: Out of scope | J143: 0 | K143: 0 | L143: 0 | M143: 0 | N143: 0
J144: 0 | K144: 0 | L144: 0 | M144: 0 | N144: 0
J145: 0 | K145: 0 | L145: 0 | M145: 0 | N145: 0
B146: 11.0 Meter Data Management | J146: 0 | K146: 0 | L146: 0 | M146: 0 | N146: 0
B147: 11.1 AMI Address Cleansing | J147: 0 | K147: 0 | L147: 0 | M147: 0 | N147: 0
B148: 11.2 AMI Control of Customer Keys & Access Devices | J148: 0 | K148: 0 | L148: 0 | M148: 0 | N148: 0
B149: 11.4 GIS Information Mgmt & Program Report | D149: Partially in scope | E149: 0.5 | F149: 1 | G149: =F149*E149*$C$7*$C$6 -> 564750 | J149: 112950 | K149: 112950 | L149: 112950 | M149: 112950 | N149: 112950
B150: 11.5 CSG Information Mgmt & Program Reporting | D150: Partially in scope | E150: 0.5 | F150: 1 | G150: 564750 | J150: 112950 | K150: 112950 | L150: 112950 | M150: 112950 | N150: 112950
B151: 11.6 AMI Meter Data Provider Accreditation | C151: Out of scope | D151: Out of scope | J151: 0 | K151: 0 | L151: 0 | M151: 0 | N151: 0
B152: 11.7 AMI Meter Data Transition | C152: Out of scope | D152: Out of scope | J152: 0 | K152: 0 | L152: 0 | M152: 0 | N152: 0
B153: 11.9 Type 5 to Market | C153: Out of scope | D153: Out of scope | J153: 0 | K153: 0 | L153: 0 | M153: 0 | N153: 0
B154: 11.10 AMI Remote Connect and Disconnect | C154: Out of scope | D154: Out of scope | J154: 0 | K154: 0 | L154: 0 | M154: 0 | N154: 0
B155: 11.11 AMI Tariff Implementation (inc. Re-assignment) Build Capability | C155: Out of scope | D155: Out of scope | J155: 0 | K155: 0 | L155: 0 | M155: 0 | N155: 0
J156: 0 | K156: 0 | L156: 0 | M156: 0 | N156: 0
B157: 12.0 AMI Deployment | J157: 0 | K157: 0 | L157: 0 | M157: 0 | N157: 0
B158: 12.1 Program DeploymentPlanning & Management | D158: In scope | E158: 2 | F158: 1 | G158: =F158*E158*$C$7*$C$6 -> 2259000 | J158: 451800 | K158: 451800 | L158: 451800 | M158: 451800 | N158: 451800
B159: 12.2 TechnologyManagement | D159: Partially in scope | E159: 0.5 | F159: 1 | G159: 564750 | J159: 112950 | K159: 112950 | L159: 112950 | M159: 112950 | N159: 112950
B160: 12.3 Field Management & Training | D160: In scope | E160: 1 | F160: 1 | G160: 1129500 | J160: 225900 | K160: 225900 | L160: 225900 | M160: 225900 | N160: 225900
B161: 12.4 Customer Interaction & Treatment Deployment | D161: In scope | E161: 0.1 | F161: 1 | G161: 112950 | J161: 22590 | K161: 22590 | L161: 22590 | M161: 22590 | N161: 22590
B162: 12.5 Data Management | C162: Out of scope | D162: Out of scope | J162: 0 | K162: 0 | L162: 0 | M162: 0 | N162: 0
B163: 12.6 BAU Metering | C163: Out of scope | D163: Out of scope | J163: 0 | K163: 0 | L163: 0 | M163: 0 | N163: 0
B164: 12.7 Customer Response Plan to Support AMI Rollout Deployment | D164: In scope | E164: 1 | F164: 1 | G164: =F164*E164*$C$7*$C$6 -> 1129500 | J164: 225900 | K164: 225900 | L164: 225900 | M164: 225900 | N164: 225900
B165: 12.8 Revenue Management Deployment | C165: Out of scope | D165: Out of scope | J165: 0 | K165: 0 | L165: 0 | M165: 0 | N165: 0
B166: 12.11 – 12.20 Region 1 to Region 10 Region | D166: In scope | E166: 0 | F166: 1 | G166: =F166*E166*$C$7*$C$6 -> 0 | J166: 0 | K166: 0 | L166: 0 | M166: 0 | N166: 0
B167: 12.21 AMI Meters in WIP 2011 | C167: Out of scope | D167: Out of scope | J167: 0 | K167: 0 | L167: 0 | M167: 0 | N167: 0
B168: 12.22 AMI Meters in WIP 2012 | C168: Out of scope | D168: Out of scope | J168: =IF($F168>=$J$12,1,$F168*5)*$C$5*$C$7*$E168 -> 0 | K168: =IF($F168>=K$12,1,IF((($F168-K$12)>=0),($F168-K$12)*5,0))*$C$5*$C$7*$E168 -> 0 | L168: 0 | M168: 0 | N168: 0
B169: 12.23 AMI Meters in Work In Progress 2013 | C169: Out of scope | D169: Out of scope | J169: 0 | K169: 0 | L169: 0 | M169: 0 | N169: 0
J170: 0 | K170: 0 | L170: 0 | M170: 0 | N170: 0
B171: 13.0 Operate | J171: 0 | K171: 0 | L171: 0 | M171: 0 | N171: 0
B172: 13.1 Meter Strategy & Provider | D172: In scope | E172: 0 | F172: 1 | G172: =F172*E172*$C$7*$C$6 -> 0 | J172: 0 | K172: 0 | L172: 0 | M172: 0 | N172: 0
B173: 13.2 AMI Technology | D173: In scope | E173: 1 | F173: 1 | G173: 1129500 | J173: 225900 | K173: 225900 | L173: 225900 | M173: 225900 | N173: 225900
B174: 13.3 IT | D174: Out of scope | J174: 0 | K174: 0 | L174: 0 | M174: 0 | N174: 0
B175: 13.4 Data Management BAU | D175: Out of scope | J175: 0 | K175: 0 | L175: 0 | M175: 0 | N175: 0
B176: 13.5 AMI Enhancements | D176: In scope | E176: 0 | F176: 1 | G176: =F176*E176*$C$7*$C$6 -> 0 | J176: 0 | K176: 0 | L176: 0 | M176: 0 | N176: 0
B177: 13.6 AMI Communications Control | D177: In scope | E177: 1 | F177: 1 | G177: 1129500 | J177: 225900 | K177: 225900 | L177: 225900 | M177: 225900 | N177: 225900
B178: 13.7 TechnologyAssurance | D178: In scope | E178: 1 | F178: 1 | G178: 1129500 | J178: 225900 | K178: 225900 | L178: 225900 | M178: 225900 | N178: 225900
B179: 13.8 HAN Support | C179: Out of scope | D179: Out of scope | J179: 0 | K179: 0 | L179: 0 | M179: 0 | N179: 0
B180: 13.9 OperationsManagement & Support | D180: In scope | E180: 0.5 | F180: 1 | G180: =F180*E180*$C$7*$C$6 -> 564750 | J180: 112950 | K180: 112950 | L180: 112950 | M180: 112950 | N180: 112950
B181: 13.10 Data Management Operations | D181: In scope | E181: 1 | F181: 1 | G181: 1129500 | J181: 225900 | K181: 225900 | L181: 225900 | M181: 225900 | N181: 225900
B182: 13.11 AMI Corporate | C182: Out of scope | D182: Out of scope
B183: 13.12 Price Review 2016 -2026 | C183: Out of scope | D183: Out of scope
B185: 14.0 Non-recoverable project (CAPEX)
B186: 14.1 Generation 2 Communications | C186: Out of scope | D186: Out of scope
B187: 14.2 Customer Initiated Meter Replacement (Solar) | C187: Out of scope | D187: Out of scope
B188: 14.3 Customer Initiated Meter Replacement (Other) | C188: Out of scope | D188: Out of scope
B189: 14.4 New Connections Installations | C189: Out of scope | D189: Out of scope
B190: 14.5 Servicing (NewConnections & Replacements) | C190: Out of scope | D190: Out of scope
B192: 15.0 Non-recoverable project (OPEX)
B193: 15.2 PV Installations | C193: Out of scope | D193: Out of scope
B194: 15.3 Meter Maintenance (ACS) | C194: Out of scope | D194: Out of scope
B195: 15.4 Meter Maintenance (Abolishment) | C195: Out of scope | D195: Out of scope
B196: 15.5 Special Reading | C196: Out of scope | D196: Out of scope
B197: 15.6 Other Connections (Function Code 800) | C197: Out of scope | D197: Out of scope
B198: 15.1 Victorian Energy Efficiency Target (VEET) | C198: Out of scope | D198: Out of scope
B199: 15.6 Other Connections (Function Code 800) | C199: Out of scope | D199: Out of scope
J200: 2026-27 | K200: 2027-28 | L200: 2028-29 | M200: 2029-30 | N200: 2030-31 | O200: Total
G201: =SUM(G14:G199)*0.5 -> 12938050 | J201: =SUM(J14:J200) -> 6163760 | K201: =SUM(K14:K200) -> 4721310 | L201: 4721310 | M201: 4721310 | N201: 4495410 | O201: =SUM(J201:N201) -> 24823100
J204: 2026-27 | K204: 2027-28 | L204: 2028-29 | M204: 2029-30 | N204: 2030-31 | O204: Total
B205: Powercor | C205: 989079.3679 | D205: =C205/$C$208 -> 0.4805305369 | I205: Powercor | J205: =J$201*$D205 -> 2961874.902 | K205: =K$201*$D205 -> 2268733.629 | L205: 2268733.629 | M205: 2268733.629 | N205: 2160181.781 | O205: =SUM(J205:N205) -> 11928257.57
B206: Citipower | C206: 343734.6321 | D206: =C206/$C$208 -> 0.1669987189 | I206: Citipower | J206: =J$201*$D206 -> 1029340.024 | K206: 788452.7216 | L206: 788452.7216 | M206: 788452.7216 | N206: 750727.711 | O206: =SUM(J206:N206) -> 4145425.899
B207: UE | C207: 725493 | D207: 0.3524707442 | I207: UE | J207: 2172545.074 | K207: 1664123.649 | L207: 1664123.649 | M207: 1664123.649 | N207: 1584500.508 | O207: 8749416.529
C208: =SUM(C205:C207) -> 2058307 | I208: Total | J208: =SUM(J205:J207) -> 6163760 | K208: =SUM(K205:K207) -> 4721310 | L208: 4721310 | M208: 4721310 | N208: 4495410 | O208: 24823100
... 5 more rows
